{"text_format":"1","workbook":"xlsx","n_sheets":5,"sheets":["Ranking","INSTRUCCIONES","EVALUE SU PROGRAMA DE HM","VALI","Data_in_one_row"],"not_rendered":{"charts":6,"images":1,"macros":1,"external_links":0,"defined_names":43,"comments":0,"pivot_tables":0},"unopened":[],"bounds":{"document_bytes":16777216,"sheet_cells":100000,"rows_first":2000,"rows_last":500,"rows_between":2000,"halvings":0,"cell_chars":16384,"cell_head_chars":4096},"cells_cut":0,"cells_raw":0,"read":"whole","date_system":"1900"}

{"sheet":"Ranking","index":0,"n_rows":20,"n_cols":1,"rows_kept":20,"cut":false,"hidden":true,"merged":[]}
[1]
[2]
[3]
[4]
[5]
[6]
[7]
[8]
[9]
[10]
[11]
[12]
[13]
[14]
[15]
[16]
[17]
[18]
[19]
[20]

{"sheet":"INSTRUCCIONES","index":1,"n_rows":17,"n_cols":1,"rows_kept":17,"cut":false,"hidden":false,"merged":[]}
["MATERIAL PARA REALIZAR CURSO-TALLER TRAIN THE TRAINERS"]
["ESTE FORMATO 2018 ES PROPIEDAD DE HAND HYGIENE EXCELLENCE AWARD, SE PERMITIO SU USO EN EL TRAIN THE TRAINERS REALIZADO EN PUEBLA EN ABRIL 2017  PARA LA REPLICACIÓN EXACTA PARA FUTUROS CURSOS. POR TAL MOTIVO NO SE PUEDE MODIFICAR LA INFORMACIÓN BASE QUE SE ENCUENTRA EN EL ARCHIVO, SIN EMBARGO, PARA TENER LA INFORMACIÓN MÁS RECIENTE DE SUS ÁREAS DE TRABAJO EN ESTE CURSO; EN LAS ÁREAS DONDE VIENEN LOS AÑOS \"2012 AL 2016\", SE DEBEN ANOTAR LOS DATOS DE LOS ÚLTIMOS 5 AÑOS (2016 AL 2020) LOS CUALES QUEDARÍAN DE LA SIGUIENTE FORMA:"]
["2012 EQUIVALE A 2016"]
["2013 EQUIVALE A 2017"]
["2014 EQUIVALE A 2018"]
["2015 EQUIVALE A 2019"]
["2016 EQUIVALE A 2020"]
[]
["INSTRUCCIONES"]
["1.- USTEDES DEBERAN LLENAR EL FORMATO CON LOS DATOS DEL PROGRAMA DE HIGIENE DE MANOS DE SU INSTITUCION ASI COMO LA  INFORMACION DE VIGILANCIA EPIDEMIOLOGICA DE INFECCIONES ASOCIDAS A LA ATENCION DE LA SALUD ANTES CONOCIDAS COMO INTRAHOSPITALARIAS O NOSOCOMIALES."]
["2.- DEBE CONSULTAR AL ARCHIVO CLINICO,UNIDAD DE VIGILANCIA EPIDEMIÓLOGICA O COMITÉ DE INFECCIONES  Y OTROS SERVICIOS, JEFATURAS O SUBDIRECCIONES  PARA LLENAR ALGUNOS RUBRO FARMACIA HOSPITALARIA, RECURSOS MATERIALES, "]
["3.- DEBE REALIZAR RECORRIDOS EN SU INSTITUCION PARA DETERMINAR LA INFRAESTRUCTURA EXISTENTE"]
["4.- EL COLOCAR INFORMACION VERIDICA LE PERMITIRA CONOCER LA BASAL DE SU PROGRAMA PARA INICIAR LA MEJORA CONTINUA DE ESTE"]
["5.- ENVIAR SU FORMATO AL CORREO comite.deinfecciones@yahoo.com.mx"]
[]
[]
["AGRADECEMOS EL PERMISO PARA LA REPRODUCCION DE ESTE MATERIAL A HAND HYGIENE EXCELLENCE AWARD, ACADEMIA AESCULAP Y AL DR DIDIER PITTET. Por otra parte si usted a llevado a cabo este ejercicio y esta comprometido en la mejora continua de su programa de higiene de manos, le invitamos a que decida cuando participar y aplicar para obtener este premio https://www.hhea.info/en/regions/america-latina/america-latina-es.html "]

{"sheet":"EVALUE SU PROGRAMA DE HM","index":2,"n_rows":361,"n_cols":8,"rows_kept":361,"cut":false,"hidden":false,"merged":[[352,0,353,0],[352,1,353,1],[352,4,353,4],[354,0,355,0],[354,1,355,1],[354,4,355,4],[346,0,347,0],[293,1,293,2],[12,2,12,4],[13,2,13,4],[26,2,26,4],[15,2,15,4],[14,2,14,4],[19,2,19,4],[31,0,31,3],[38,2,38,3],[40,1,40,3],[32,1,32,3],[33,1,33,3],[34,1,34,3],[35,1,35,3],[36,1,36,3],[28,2,28,4],[20,2,20,4],[361,1,361,4],[241,1,241,2],[226,1,226,2],[316,4,317,4],[319,0,320,0],[319,1,320,1],[319,4,320,4],[321,0,322,0],[321,1,322,1],[321,4,322,4],[307,0,308,0],[350,0,351,0],[350,1,351,1],[350,4,351,4],[356,0,357,0],[356,1,357,1],[356,4,357,4],[316,0,317,0],[346,1,347,1],[346,4,347,4],[348,0,349,0],[348,1,349,1],[348,4,349,4],[330,0,331,0],[324,0,325,0],[96,0,100,0],[324,1,325,1],[324,4,325,4],[326,0,327,0],[326,1,327,1],[326,4,327,4],[328,0,329,0],[328,1,329,1],[328,4,329,4],[305,0,306,0],[305,1,306,1],[305,4,306,4],[289,0,290,0],[289,1,290,1],[289,4,290,4],[291,0,292,0],[291,1,292,1],[291,4,292,4],[316,1,317,1],[294,4,295,4],[296,0,297,0],[296,1,297,1],[296,4,297,4],[2,2,2,4],[307,1,308,1],[307,4,308,4],[309,0,310,0],[309,1,310,1],[309,4,310,4],[314,0,315,0],[314,1,315,1],[314,4,315,4],[301,0,302,0],[301,1,302,1],[301,4,302,4],[303,0,304,0],[303,1,304,1],[303,4,304,4],[89,0,89,1],[90,1,90,3],[6,2,6,4],[5,2,5,4],[4,2,4,4],[294,0,295,0],[294,1,295,1],[21,2,21,4],[22,2,22,4],[1,2,1,4],[64,1,68,1],[64,0,68,0],[69,1,73,1],[69,0,73,0],[74,1,78,1],[74,0,78,0],[79,1,83,1],[79,0,83,0],[3,2,3,4],[7,2,7,4],[8,2,8,4],[9,2,9,4],[27,2,27,4],[29,2,29,4],[16,2,16,4],[17,2,17,4],[18,2,18,4],[23,2,23,4],[24,2,24,4],[25,2,25,4],[11,2,11,4],[10,2,10,4],[42,1,42,3],[339,0,340,0],[339,1,340,1],[339,4,340,4],[342,0,343,0],[342,4,343,4],[344,0,345,0],[342,1,343,1],[298,1,298,2],[299,0,300,0],[299,1,300,1],[299,4,300,4],[330,1,331,1],[330,4,331,4],[332,0,333,0],[332,1,333,1],[332,4,333,4],[335,0,336,0],[335,1,336,1],[335,4,336,4],[337,0,338,0],[337,1,338,1],[337,4,338,4],[344,1,345,1],[344,4,345,4],[286,0,287,0],[286,1,287,1],[286,4,287,4],[288,1,288,2],[282,0,283,0],[282,1,283,1],[282,4,283,4],[284,0,285,0],[284,1,285,1],[284,4,285,4],[280,0,281,0],[280,1,281,1],[280,4,281,4],[275,0,276,0],[275,1,276,1],[275,4,276,4],[277,0,278,0],[277,1,278,1],[277,4,278,4],[279,1,279,3],[264,0,265,0],[264,1,265,1],[264,4,265,4],[272,1,272,2],[273,0,274,0],[273,1,274,1],[273,4,274,4],[266,0,267,0],[266,1,267,1],[266,4,267,4],[268,0,269,0],[268,1,269,1],[268,4,269,4],[271,1,271,2],[253,0,256,0],[253,1,256,1],[253,4,256,4],[257,0,260,0],[257,1,260,1],[257,4,260,4],[261,0,263,0],[261,1,263,1],[261,4,263,4],[248,1,248,2],[249,0,252,0],[249,1,252,1],[249,4,252,4],[242,0,243,0],[242,1,243,1],[242,4,243,4],[244,0,245,0],[244,1,245,1],[244,4,245,4],[239,0,240,0],[239,1,240,1],[239,4,240,4],[227,0,230,0],[227,1,230,1],[227,4,230,4],[231,0,237,0],[231,1,237,1],[231,4,237,4],[213,0,214,0],[213,1,214,1],[213,4,214,4],[215,0,216,0],[215,1,216,1],[215,4,216,4],[224,0,225,0],[224,1,225,1],[224,4,225,4],[217,0,218,0],[217,1,218,1],[217,4,218,4],[220,0,221,0],[220,1,221,1],[220,4,221,4],[222,0,223,0],[222,1,223,1],[222,4,223,4],[205,0,206,0],[205,1,206,1],[205,4,206,4],[207,0,208,0],[207,1,208,1],[207,4,208,4],[209,0,210,0],[209,1,210,1],[209,4,210,4],[199,0,200,0],[199,1,200,1],[199,4,200,4],[201,0,202,0],[201,1,202,1],[201,4,202,4],[203,0,204,0],[203,1,204,1],[203,4,204,4],[47,0,47,4],[48,1,48,4],[49,1,49,4],[140,0,140,1],[146,3,146,4],[152,3,152,4],[56,1,56,4],[57,1,57,4],[118,1,122,1],[113,1,117,1],[108,1,112,1],[108,0,112,0],[113,0,117,0],[118,0,122,0],[59,1,59,4],[60,1,60,4],[50,1,50,4],[51,1,51,4],[52,1,52,4],[53,1,53,4],[54,1,54,4],[84,1,85,1],[84,0,88,0],[91,1,95,1],[61,1,61,4],[55,1,55,4],[159,0,159,4],[164,4,165,4],[161,1,163,1],[164,1,165,1],[125,1,129,1],[125,0,129,0],[130,1,134,1],[130,0,134,0],[107,1,107,3],[106,0,106,1],[123,0,123,1],[58,1,58,4],[91,0,95,0],[96,1,100,1],[101,1,105,1],[101,0,105,0],[360,0,360,4],[359,0,359,1],[168,4,173,4],[168,1,173,1],[168,0,173,0],[181,0,182,0],[181,1,182,1],[181,4,182,4],[174,0,176,0],[174,1,176,1],[174,4,176,4],[177,0,178,0],[177,1,178,1],[177,4,178,4],[179,0,180,0],[183,0,184,0],[183,1,184,1],[183,4,184,4],[185,0,186,0],[197,4,198,4],[190,0,193,0],[190,1,193,1],[190,4,193,4],[194,0,195,0],[185,1,186,1],[185,4,186,4],[196,1,196,4],[197,0,198,0],[197,1,198,1],[135,1,139,1],[135,0,139,0],[153,1,157,1],[153,0,157,0],[141,1,145,1],[141,0,145,0],[147,1,151,1],[147,0,151,0],[179,1,180,1],[179,4,180,4],[158,3,158,4],[164,0,165,0],[161,0,163,0],[194,1,195,1],[194,4,195,4]]}
["                                        ",null,{"$f":"Winning_Ceremony_Year","v":2018},null,null,null,"Región","LATAM"]
[null,null,{"$f":"CONCATENATE(\"Por favor complete este formato y envielo por correo a \",H5,\" antes del \",H3)","v":"Por favor complete este formato y envielo por correo a hhea_latam_br@bbraun.com antes del 22 Septiembre 2017"},null,null,null,"Ceremonia de Premiación:",2018]
[null,"i",{"$f":"CONCATENATE(\"En caso de alguna pregunta acerca del formato por favor contacte \",H5,\"  Por favor considere las notas a pie de página.\")","v":"En caso de alguna pregunta acerca del formato por favor contacte hhea_latam_br@bbraun.com  Por favor considere las notas a pie de página."},null,null,null,"Fecha limite de presentación","22 Septiembre 2017"]
[null,"Tratamiento"]
[null,"Nombre",null,null,null,null,"Devolver el correo:",{"$f":"VLOOKUP(H1,VALI!Y2:Z6,2,0)","v":"hhea_latam_br@bbraun.com"}]
[null,"Apellido"]
[null,"Titulo"]
[null,"Departamento"]
[null,"Hospital"]
[null,"Domicilio"]
[null,"Codigo postal"]
[null,"Ciudad"]
[null,"Pais"]
[null,"Teléfono de Contacto"]
[null,"Fax de Contacto"]
[null,"Celular"]
[null,"E-mail"]
[]
[null,"Infraestructura del Hospital"]
[null,"Sector"]
[null,"Nivel de Atención"]
[null,"Tipo de hospital/centro"]
[null,"N° de Quirofanos"]
[null,"N°. de Camas"]
[null,"N°. de Especialistas en Infecciones"]
[null,"N°. de Enfermeras de Control de Infecciones (CI)"]
[null,"No. de enlace enfermera de Control de Infecciones"]
[null,"No. de Microbiologos"]
[null,"Año el cual se empezó el programa completo de higiene de las manos "]
[null,"Año el cual se empezó el registro de indicadores de cumplimiento al programa de Higiene de las Manos"]
[]
[{"$f":"CONCATENATE(\"TOTAL  Criterio de Liderazgo: \",TEXT(E313,0),\"      Puntuación : \",\" \",TEXT(E168,0),\" + \",TEXT(E189,0),\" + \",TEXT(E213,0),\" + \",TEXT(E248,0),\" + \",TEXT(E272,0),\" = \")","v":"TOTAL  Criterio de Liderazgo: 0      Puntuación :  0 + 0 + 0 + 0 + 0 = "},null,null,null,{"$f":"E168+E189+E213+E248+E272","v":0}]
[]
[]
[]
[]
[]
[]
[]
[]
[]
[]
[]
[]
[null,{"$f":"IF(OR_Data=\"Yes\",\"Consumption includes Operating Room\",\"\")","v":""},{"$f":"IF(OR_Data=\"Yes\",\"Consumption data for the OR couldn't be determined\",\"\")","v":""}]
[]
[]
["Implementación de la estrategia multimodal de la OMS en la Higiene de Manos"]
["No.","Pregunta"]
["A","Cambio del Sistema: Explique en detalle cómo se han implementado los cambios de sistema en su hospital para aumentar la conciencia de la higiene de las manos"]
[]
["B","Formación y Educación: Describa los programas de formación y educación para todos los trabajadores de la salud (incluido el personal recién empleado) sobre la importancia de la higiene de las manos. ¿Como capacita en los \"5 momentos para la higiene de las manos\"?, ¿Que procedimientos utiliza para el correcto lavado de manos y la aplicación de desinfectantes ?¿Cuales son?"]
[]
["C","Evaluación y Retroalimentación: ¿Qué aspectos de cumplimiento de higiene de manos lleva a cabo? ¿Cómo monitorea regularmente en su hospital? ¿Qué programas de comunicación lleva a cabo en su hospital para que los trabajadores de salud esten informados sobre su programa de la higiene de manos y sus mejoras?"]
[]
["D","Recordatorios y Avisos: ¿Se utilizan recordatorios en el lugar de trabajo para el personal, pacientes y visitantes? Por favor indiquenos qué tipo de recordatorios o avisos se implementaron en su entorno hospitalario / sanitario para crear conciencia sobre la importancia de la higiene de las manos."]
[]
["E","Seguridad Institucional: Por favor describa cómo estan adoptando en sus instalaciones hospitalarias una cultura de seguridad.\nProporcione ejemplos y evidencias."]
[]
["F","Innovación: Describa los enfoques innovadores implementados en el programa de higiene de manos en su hospital."]
[]
["G","Resumen Ejecutivo: Describa el impacto del programa de higiene de manos en su hospital y la reducción de las tasas de infecciones.   "]
["No.","Pregunta","Epoca","Valor","Respuesta"]
["G1","El seguimiento de las tasas de infección iniciaron en",null,"Año"]
["G2","Tasas de cumplimiento de Higiene de Manos por año ",{"$f":"Winning_Ceremony_Year-6","v":2012},"Tasa"]
[null,null,{"$f":"Winning_Ceremony_Year-5","v":2013},"Tasa"]
[null,null,{"$f":"Winning_Ceremony_Year-4","v":2014},"Tasa"]
[null,null,{"$f":"Winning_Ceremony_Year-3","v":2015},"Tasa"]
[null,null,{"$f":"Winning_Ceremony_Year-2","v":2016},"Tasa"]
["G3","Número de observaciones por año",{"$f":"Winning_Ceremony_Year-6","v":2012},"Cantidad"]
[null,null,{"$f":"Winning_Ceremony_Year-5","v":2013},"Cantidad"]
[null,null,{"$f":"Winning_Ceremony_Year-4","v":2014},"Cantidad"]
[null,null,{"$f":"Winning_Ceremony_Year-3","v":2015},"Cantidad"]
[null,null,{"$f":"Winning_Ceremony_Year-2","v":2016},"Cantidad"]
["G4","Número de días de hospitalización por año (p.días/a)",{"$f":"Winning_Ceremony_Year-6","v":2012},"p.días /a"]
[null,null,{"$f":"Winning_Ceremony_Year-5","v":2013},"p.días /a"]
[null,null,{"$f":"Winning_Ceremony_Year-4","v":2014},"p.días /a"]
[null,null,{"$f":"Winning_Ceremony_Year-3","v":2015},"p.días /a"]
[null,null,{"$f":"Winning_Ceremony_Year-2","v":2016},"p.días /a"]
["G5","Número de procedimientos quirúrgicos por año",{"$f":"Winning_Ceremony_Year-6","v":2012},"Número"]
[null,null,{"$f":"Winning_Ceremony_Year-5","v":2013},"Número"]
[null,null,{"$f":"Winning_Ceremony_Year-4","v":2014},"Número"]
[null,null,{"$f":"Winning_Ceremony_Year-3","v":2015},"Número"]
[null,null,{"$f":"Winning_Ceremony_Year-2","v":2016},"Número"]
["G6","Número total de visitas en clínicas ambulatorias",{"$f":"Winning_Ceremony_Year-6","v":2012},"Número"]
[null,null,{"$f":"Winning_Ceremony_Year-5","v":2013},"Número"]
[null,null,{"$f":"Winning_Ceremony_Year-4","v":2014},"Número"]
[null,null,{"$f":"Winning_Ceremony_Year-3","v":2015},"Número"]
[null,null,{"$f":"Winning_Ceremony_Year-2","v":2016},"Número"]
["Atención Ambulatoria15"]
["G7","Datos de consumo de productos de higiene de las manos (G7-G9) está disponible para todo el departamento de atención ambulatoria o áreas específicas?"]
["G8","Consumo de jabón liquido5 en litros por año",{"$f":"Winning_Ceremony_Year-6","v":2012},"Litros",null,{"$f":"E92/E85*1000","v":{"$error":"#DIV/0!"}}]
[null,null,{"$f":"Winning_Ceremony_Year-5","v":2013},"Litros",null,{"$f":"E93/E86*1000","v":{"$error":"#DIV/0!"}}]
[null,null,{"$f":"Winning_Ceremony_Year-4","v":2014},"Litros",null,{"$f":"E94/E87*1000","v":{"$error":"#DIV/0!"}}]
[null,null,{"$f":"Winning_Ceremony_Year-3","v":2015},"Litros",null,{"$f":"E95/E88*1000","v":{"$error":"#DIV/0!"}}]
[null,null,{"$f":"Winning_Ceremony_Year-2","v":2016},"Litros",null,{"$f":"E96/E89*1000","v":{"$error":"#DIV/0!"}}]
["G9","Consumo de jabon antibacterial en litros por año\n(jabón antibacterial  p.ej. 2% o 4%  jabón base de clorhexidina libre de alcohol o jabón base iodo povidona libre de alcohol)",{"$f":"Winning_Ceremony_Year-6","v":2012},"Litros",null,{"$f":"E97/E85*1000","v":{"$error":"#DIV/0!"}}]
[null,null,{"$f":"Winning_Ceremony_Year-5","v":2013},"Litros",null,{"$f":"E98/E86*1000","v":{"$error":"#DIV/0!"}}]
[null,null,{"$f":"Winning_Ceremony_Year-4","v":2014},"Litros",null,{"$f":"E99/E87*1000","v":{"$error":"#DIV/0!"}}]
[null,null,{"$f":"Winning_Ceremony_Year-3","v":2015},"Litros",null,{"$f":"E100/E88*1000","v":{"$error":"#DIV/0!"}}]
[null,null,{"$f":"Winning_Ceremony_Year-2","v":2016},"Litros",null,{"$f":"E101/E89*1000","v":{"$error":"#DIV/0!"}}]
["G10","El consumo de preparado de base de alcohol en litros por año",{"$f":"Winning_Ceremony_Year-6","v":2012},"Litros",null,{"$f":"E102/E85*1000","v":{"$error":"#DIV/0!"}}]
[null,null,{"$f":"Winning_Ceremony_Year-5","v":2013},"Litros",null,{"$f":"E103/E86*1000","v":{"$error":"#DIV/0!"}}]
[null,null,{"$f":"Winning_Ceremony_Year-4","v":2014},"Litros",null,{"$f":"E104/E87*1000","v":{"$error":"#DIV/0!"}}]
[null,null,{"$f":"Winning_Ceremony_Year-3","v":2015},"Litros",null,{"$f":"E105/E88*1000","v":{"$error":"#DIV/0!"}}]
[null,null,{"$f":"Winning_Ceremony_Year-2","v":2016},"Litros",null,{"$f":"E106/E89*1000","v":{"$error":"#DIV/0!"}}]
["Hospitalización"]
["G11","Datos de consumo de productos de higiene de las manos (G7-G9) está disponible para todo el departamento de atención ambulatoria o áreas específicas?"]
["G12","Consumo de jabón liquido5  en litros por año",{"$f":"Winning_Ceremony_Year-6","v":2012},"Litros",null,{"$f":"E109/E75*1000","v":{"$error":"#DIV/0!"}}]
[null,null,{"$f":"Winning_Ceremony_Year-5","v":2013},"Litros",null,{"$f":"E110/E76*1000","v":{"$error":"#DIV/0!"}}]
[null,null,{"$f":"Winning_Ceremony_Year-4","v":2014},"Litros",null,{"$f":"E111/E77*1000","v":{"$error":"#DIV/0!"}}]
[null,null,{"$f":"Winning_Ceremony_Year-3","v":2015},"Litros",null,{"$f":"E112/E78*1000","v":{"$error":"#DIV/0!"}}]
[null,null,{"$f":"Winning_Ceremony_Year-2","v":2016},"Litros",null,{"$f":"E113/E79*1000","v":{"$error":"#DIV/0!"}}]
["G13","Consumo de jabon antibacterial en litros por año\n(jabón antibacterial  p.ej. 2% o 4%  jabón base de clorhexidina libre de alcohol o jabón base iodo povidona libre de alcohol)",{"$f":"Winning_Ceremony_Year-6","v":2012},"Litros",null,{"$f":"E114/E75*1000","v":{"$error":"#DIV/0!"}}]
[null,null,{"$f":"Winning_Ceremony_Year-5","v":2013},"Litros",null,{"$f":"E115/E76*1000","v":{"$error":"#DIV/0!"}}]
[null,null,{"$f":"Winning_Ceremony_Year-4","v":2014},"Litros",null,{"$f":"E116/E77*1000","v":{"$error":"#DIV/0!"}}]
[null,null,{"$f":"Winning_Ceremony_Year-3","v":2015},"Litros",null,{"$f":"E117/E78*1000","v":{"$error":"#DIV/0!"}}]
[null,null,{"$f":"Winning_Ceremony_Year-2","v":2016},"Litros",null,{"$f":"E118/E79*1000","v":{"$error":"#DIV/0!"}}]
["G14","El consumo de preparado de base de alcohol en litros por año",{"$f":"Winning_Ceremony_Year-6","v":2012},"Litros",null,{"$f":"E119/E75*1000","v":{"$error":"#DIV/0!"}}]
[null,null,{"$f":"Winning_Ceremony_Year-5","v":2013},"Litros",null,{"$f":"E120/E76*1000","v":{"$error":"#DIV/0!"}}]
[null,null,{"$f":"Winning_Ceremony_Year-4","v":2014},"Litros",null,{"$f":"E121/E77*1000","v":{"$error":"#DIV/0!"}}]
[null,null,{"$f":"Winning_Ceremony_Year-3","v":2015},"Litros",null,{"$f":"E122/E78*1000","v":{"$error":"#DIV/0!"}}]
[null,null,{"$f":"Winning_Ceremony_Year-2","v":2016},"Litros",null,{"$f":"E123/E79*1000","v":{"$error":"#DIV/0!"}}]
["Quirófano"]
["G15","Datos en G11-G13 ya está incluida en G7-G9"]
["G16","Consumo de jabón líquido5en litros por año en quirófano",{"$f":"Winning_Ceremony_Year-6","v":2012},"Litros",null,{"$f":"E126/E80*1000","v":{"$error":"#DIV/0!"}}]
[null,null,{"$f":"Winning_Ceremony_Year-5","v":2013},"Litros",null,{"$f":"E127/E81*1000","v":{"$error":"#DIV/0!"}}]
[null,null,{"$f":"Winning_Ceremony_Year-4","v":2014},"Litros",null,{"$f":"E128/E82*1000","v":{"$error":"#DIV/0!"}}]
[null,null,{"$f":"Winning_Ceremony_Year-3","v":2015},"Litros",null,{"$f":"E129/E83*1000","v":{"$error":"#DIV/0!"}}]
[null,null,{"$f":"Winning_Ceremony_Year-2","v":2016},"Litros",null,{"$f":"E130/E84*1000","v":{"$error":"#DIV/0!"}}]
["G17","Consumo de jabon antibacterial en litros  por año en quirófano\n(jabón antibacterial  p.ej. 2% o 4%  jabón base de clorhexidina libre de alcohol o jabón base iodo povidona libre de alcohol)",{"$f":"Winning_Ceremony_Year-6","v":2012},"Litros",null,{"$f":"E131/E80*1000","v":{"$error":"#DIV/0!"}}]
[null,null,{"$f":"Winning_Ceremony_Year-5","v":2013},"Litros",null,{"$f":"E132/E81*1000","v":{"$error":"#DIV/0!"}}]
[null,null,{"$f":"Winning_Ceremony_Year-4","v":2014},"Litros",null,{"$f":"E133/E82*1000","v":{"$error":"#DIV/0!"}}]
[null,null,{"$f":"Winning_Ceremony_Year-3","v":2015},"Litros",null,{"$f":"E134/E83*1000","v":{"$error":"#DIV/0!"}}]
[null,null,{"$f":"Winning_Ceremony_Year-2","v":2016},"Litros",null,{"$f":"E135/E84*1000","v":{"$error":"#DIV/0!"}}]
["G18","El consumo de preparado de base de alcohol en litros por año en quirófano",{"$f":"Winning_Ceremony_Year-6","v":2012},"Litros",null,{"$f":"E136/E80*1000","v":{"$error":"#DIV/0!"}}]
[null,null,{"$f":"Winning_Ceremony_Year-5","v":2013},"Litros",null,{"$f":"E137/E81*1000","v":{"$error":"#DIV/0!"}}]
[null,null,{"$f":"Winning_Ceremony_Year-4","v":2014},"Litros",null,{"$f":"E138/E82*1000","v":{"$error":"#DIV/0!"}}]
[null,null,{"$f":"Winning_Ceremony_Year-3","v":2015},"Litros",null,{"$f":"E139/E83*1000","v":{"$error":"#DIV/0!"}}]
[null,null,{"$f":"Winning_Ceremony_Year-2","v":2016},"Litros",null,{"$f":"E140/E84*1000","v":{"$error":"#DIV/0!"}}]
["Número de infecciones monitorizadas",null,null,"Número de Infecciones","Número de días paciente"]
["G19","1st Patógeno o infección monitoreada vs. número de días de paciente\n\nPor razones de protección de datos, no es necesario mencionar qué infecciones, patógenos son monitoreados.\n\n",{"$f":"Winning_Ceremony_Year-6","v":2012},null,null,{"$f":"D142/E142*1000","v":{"$error":"#DIV/0!"}}]
[null,null,{"$f":"Winning_Ceremony_Year-5","v":2013},null,null,{"$f":"D143/E143*1000","v":{"$error":"#DIV/0!"}}]
[null,null,{"$f":"Winning_Ceremony_Year-4","v":2014},null,null,{"$f":"D144/E144*1000","v":{"$error":"#DIV/0!"}}]
[null,null,{"$f":"Winning_Ceremony_Year-3","v":2015},null,null,{"$f":"D145/E145*1000","v":{"$error":"#DIV/0!"}}]
[null,null,{"$f":"Winning_Ceremony_Year-2","v":2016},null,null,{"$f":"D146/E146*1000","v":{"$error":"#DIV/0!"}}]
["G19.1","Datos ingresados para área específica o hospital completo?\n"]
["G20","2nd  Patógeno o infección monitoreada vs. número de días de paciente\n\nPor razones de protección de datos, no es necesario mencionar qué infecciones, patógenos son monitoreados.",{"$f":"Winning_Ceremony_Year-6","v":2012},null,null,{"$f":"D148/E148*1000","v":{"$error":"#DIV/0!"}}]
[null,null,{"$f":"Winning_Ceremony_Year-5","v":2013},null,null,{"$f":"D149/E149*1000","v":{"$error":"#DIV/0!"}}]
[null,null,{"$f":"Winning_Ceremony_Year-4","v":2014},null,null,{"$error":"#DIV/0!"}]
[null,null,{"$f":"Winning_Ceremony_Year-3","v":2015},null,null,{"$error":"#DIV/0!"}]
[null,null,{"$f":"Winning_Ceremony_Year-2","v":2016},null,null,{"$error":"#DIV/0!"}]
["G20.1","Datos ingresados para área específica o hospital completo?"]
["G21","3rd Patógeno o infección monitoreada vs. número de días de paciente\n\nPor razones de protección de datos, no es necesario mencionar qué infecciones, patógenos son monitoreados.",{"$f":"Winning_Ceremony_Year-6","v":2012},null,null,{"$f":"D154/E154*1000","v":{"$error":"#DIV/0!"}}]
[null,null,{"$f":"Winning_Ceremony_Year-5","v":2013},null,null,{"$error":"#DIV/0!"}]
[null,null,{"$f":"Winning_Ceremony_Year-4","v":2014},null,null,{"$error":"#DIV/0!"}]
[null,null,{"$f":"Winning_Ceremony_Year-3","v":2015},null,null,{"$error":"#DIV/0!"}]
[null,null,{"$f":"Winning_Ceremony_Year-2","v":2016},null,null,{"$error":"#DIV/0!"}]
["G21.1","Datos ingresados para área específica o hospital completo?"]
["Relleno de botellas de antiséptico o jabón líquido para manos "]
["G22","¿Se vuelven a llenar las botellas vacías?",null,null,"No"]
["G23","Condiciones higiénicas para el relleno de botellas de antiséptico para manos  y / o jabón líquido","Completar botellas vacías o parcialmente llenas"]
[null,null,"Rellenado en botellas limpias y secas en una habitación donde las condiciones higiénicas no son controladas"]
[null,null,"Recarga en botellas limpias y secas bajo condiciones de higiene controlada en un ambiente limpio y sin polvo"]
["G24","Transferencia del número de lote, fecha de reabastecimiento y duración de almacenamiento del bulto a la botella rellenada","No"]
[null,null,"Si"]
["No.","Pregunta","Respuesta","Puntos","Puntos obtenidos"]
[1,"Cambios en el Sistema",null,null,{"$f":"IF(SUM(E169:E187)>100,100,SUM(E169:E187))","v":0}]
[1.1000000000000001,"¿Qué facilidad hay en el centro para acceder a desinfectantes de las las manos a base de alcohol?\n\nElija una respuesta","No los hay",0,0]
[null,null,"Los hay, pero no se ha demostrado su eficacia1 y\ntolerabilidad.2",0]
[null,null,"Los hay solo en algunas salas o con interrupciones\ndel suministro (con eficacia1 y tolerabilidad2\ndemostradas).",5]
[null,null,"Los hay continuamente en todo el centro (con eficacia1 y tolerabilidad2 demostradas). ",10]
[null,null,"Los hay continuamente en todo el centro y en el lugar de prestación de la asistencia3 en la mayoría de las salas (con eficacia1 y tolerabilidad2 demostradas).",30]
[null,null,"Los hay continuamente en todo el centro y en todos\nlos lugares de prestación de la asistencia3 (con\neficacia1 y tolerabilidad2 demostradas).",50]
[1.2,"¿Cuál es la relación entre lavabos & camas?\n\nElija una respuesta","Menos de 1:10",0,0]
[null,null,"Al menos 1:10 en la mayoría de las salas",5]
[null,null,"Al menos 1:10 en todo el centro, y 1:1 en las salas de\naislamiento y las unidades de cuidados intensivos.",10]
[1.3,"¿Hay un suministro continuo de agua corriente limpia4?","No",0,0]
[null,null,"Si",10]
[1.4,"¿Hay jabón5 en todos los lavabos?","No",0,0]
[null,null,"Si",10]
[1.5,"¿Hay toallas de un solo uso en todos los lavabos?","No",0,0]
[null,null,"Si",10]
[1.6,"¿Hay un presupuesto específico/ disponible para la adquisición continua de productos para la higiene de las manos (por ejemplo, soluciones a base de alcohol para desinfectarse las manos)? ","No",0,0]
[null,null,"Si",10]
["1.E","Pregunta adicional: plan de acción Responda a esta pregunta ÚNICAMENTE si ha obtenido una puntuación inferior a 100 en las preguntas 1.1 a 1.6: ¿Existe un plan realista para mejorar la infraestructura del hospital?","No",0,0]
[null,null,"Si",5]
["No.","Pregunta","Respuesta","Puntos","Puntos obtenidos"]
[2," Formación y aprendizaje",null,null,{"$f":"SUM(E191:E211)","v":0}]
[2.1,"Con respecto a los profesionales sanitarios del centro:"]
["2.1a ","¿Con qué frecuencia reciben capacitación acerca de la higiene de las manos7?\n\nElija una respuesta\n","Nunca",0,0]
[null,null,"Al menos una vez",5]
[null,null,"Formación periódica (anual como mínimo) para el personal médico y de enfermería o para todas las categorías profesionales",10]
[null,null,"Formación obligatoria para todas las categorías profesionales al inicio del contrato, seguida de formación continua periódica (anual como mínimo)",20]
["2.1b","¿Existe un procedimiento para confirmar que todos completan esa capacitación o formación?","No",0,0]
[null,null,"Si",20]
[2.2000000000000002,"¿Todos los profesionales sanitarios pueden acceder fácilmente a los siguientes documentos de la OMS\n(disponibles en www.who.int/gpsc/5may/tools) o a adaptaciones locales similares?"]
["2.2a","Guias en la Higiene de Manos y el cuidado de la salud (OMS)","No",0,0]
[null,null,"Si",5]
["2.2b","Manual técnico de referencia para la higiene de manos (OMS)","No",0,0]
[null,null,"Si",5]
["2.2c","Higiene de las manos: ¿por qué, cómo, cuándo?","No",0,0]
[null,null,"Si",5]
["2.2d ","Información sobre el uso de guantes","No",0,0]
[null,null,"Si",5]
[2.2999999999999998,"¿Hay en el centro un profesional suficientemente capacitado8 que actúe como instructor en los programas educativos sobre higiene de las manos?","No",0,0]
[null,null,"Si",15]
[2.4,"¿Hay un sistema de formación y validación de los observadores del cumplimiento de la higiene de las manos?","No",0,0]
[null,null,"Si",15]
[2.5,"¿Hay un presupuesto específico para la formación en materia de higiene de las manos?","No",0,0]
[null,null,"Si",10]
["No.","Pregunta","Respuesta","Puntos","Puntos obtenidos"]
[3,"Evaluación y retroalimentación",null,null,{"$f":"SUM(E214:E246)","v":0}]
[3.1,"¿Se realizan inspecciones periódicas (como mínimo anuales) de las salas para determinar la disponibilidad de desinfectantes a base de alcohol, jabón, toallas de un solo uso y otros productos para la higiene de las manos? ","No",0,0]
[null,null,"Si",10]
["3.2a","¿El conocimiento del personal de salud es evaluado en relación con las indicaciones para la higiene de manos al menos cada año ?","No",0,0]
[null,null,"Yes",5]
["3.2b","¿El conocimiento del personal de salud es evaluado con respecto a la técnica de higiene de manos por lo menos anualmente ?","No",0,0]
[null,null,"Yes",5]
[3.3,"Monitorización indirecta de la observancia de la higiene de las manos"]
["3.3a ","¿Se monitoriza periódicamente (como mínimo cada 3 -5 meses) el consumo de productos desinfectantes de las manos a base de alcohol)?","No",0,0]
[null,null,"Si",5]
["3.3b ","¿Se monitoriza periódicamente (como mínimo cada 3 -5 meses) el consumo de jabón?","No",0,0]
[null,null,"Si",5]
["3.3c","¿El consumo de productos desinfectantes de las manos a base de alcohol es, como mínimo, de 20 litros por 1000 pacientes por día?","No (o no se ha medido)",0,0]
[null,null,"Si",5]
[3.4,"Complete la monitorización directa de la observancia de la higiene de las manos si su hospital dispone de observadores de cumplimiento de la higiene de las manos formados, validados y utilizando la metodología de la OMS de los 5 momentos para la higiene de las manos."]
["3.4a","¿Con qué frecuencia se verifica directamente la observancia de la higiene de las manos con los instrumento de la OMS)?\nElija una respuesta","Nunca",0,0]
[null,null,"Irregularmente",5]
[null,null,"Anualmente",10]
[null,null,"Cada 3 meses o más a menudo",15]
["3.4b ","¿Cuál es la tasa general de observancia de la higiene de las manos en su hospital, de acuerdo a los instrumentos de la OMS?\n\nElija una respuesta","≤ 30%",0,0]
[null,null,"31 – 40%",5]
[null,null,"41 – 50%",10]
[null,null,"51 – 60%",15]
[null,null,"61 – 70%",20]
[null,null,"71 – 80%",25]
[null,null,"≥ 81%",30]
[3.5,"Retroalimentación"]
["3.5a","Retroalimentación inmediata\n¿Se ofrece a los profesionales sanitarios información inmediata al final de cada sesión de verificación de la observancia de la higiene de las manos?","No",0,0]
[null,null,"Si",5]
["3.5b","Retroalimentación sistemática ¿Los datos relacionados con los indicadores de la higiene de las manos y su evolución en el tiempo se comunican periódicamente (como mínimo cada 6 meses) a:"]
["3.5b.i","los profesionales sanitarios?","No",0,0]
[null,null,"Si",7.5]
["3.5b.ii ","la dirección del centro?","No",0,0]
[null,null,"Si",7.5]
["No.","Pregunta","Respuesta","Puntos","Puntos obtenidos"]
[4,"Recordatorios en el lugar de trabajo",null,null,{"$f":"SUM(E250:E270)","v":0}]
[4.0999999999999996,"Están expuestos en el hospital posters que contengan la siguiente información"]
["4.1a ","Poster que explique las indicaciones para la higiene de las manos\n\nElija una respuesta","No expuesto",0,0]
[null,null,"Expuesto en algunas salas/zonas de tratamiento",15]
[null,null,"Expuesto en la mayoría de las salas/zonas de tratamiento",20]
[null,null,"Expuesto en todas las salas/zonas de tratamiento",25]
["4.1b ","Poster que explique cómo desinfectarse las manos correctamente frotándolas con un desinfectante a base de alcohol\n\nElija una respuesta","No expuesto",0,0]
[null,null,"Expuesto en algunas salas/zonas de tratamiento",5]
[null,null,"Expuesto en la mayoría de las salas/zonas de tratamiento",10]
[null,null,"Expuesto en todas las salas/zonas de tratamiento",15]
["4.1c ","Poster que explique la técnica correcta para lavarse las manos\n\nElija una respuesta","No expuesto",0,0]
[null,null,"Expuesto en algunas salas/zonas de tratamiento",5]
[null,null,"Expuesto en la mayoría de las salas/zonas de tratamiento",7.5]
[null,null,"Expuesto en todas las salas/zonas de tratamiento",10]
[4.2,"¿Con qué frecuencia se realiza una inspección de todos los posters para comprobar su integridad y cambiarlos cuando sea necesario?\nElija una respuesta","Nunca",0,0]
[null,null,"Como mínimo una vez al año",10]
[null,null,"Una vez cada 2 o 3 meses",15]
[4.3,"¿Se realiza una labor de promoción de la higiene de las manos exponiendo\ny actualizando periódicamente otros posters, además de los mencionados?","No",0,0]
[null,null,"Si",10]
[4.4000000000000004,"¿Hay en las salas folletos informativos sobre la higiene de las manos?","No",0,0]
[null,null,"Si",10]
[4.5,"¿Hay otros recordatorios distribuidos por todo el centro? (por ejemplo, protectores de pantalla para la campaña sobre la higiene de las manos, fistoles, etiquetas, etc.)","No",0,0]
[null,null,"Si",15]
["No.","Pregunta","Respuesta","Puntos","Puntos obtenidos"]
[5,"Clima institucional de seguridad con respecto a la higiene de las manos",null,null,{"$f":"SUM(E274:E311)","v":0}]
[5.0999999999999996,"Con respecto al equipo encargado de la higiene de las manos10, es decir, dedicado a la promoción y aplicación de prácticas óptimas de higiene de las manos en el hospital, responda a las preguntas siguientes:"]
["5.1a ","¿Existe tal equipo?","No",0,0]
[null,null,"Si",5]
["5.1b","¿Se reúne periódicamente (al menos una vez al mes)?","No",0,0]
[null,null,"Si",5]
["5.1c ","¿Dispone de tiempo para dedicarlo a la promoción activa de la higiene de las manos? (por ejemplo, para enseñar cómo monitorizar el desempeño en materia de higiene de las manos o para organizar nuevas actividades)","No",0,0]
[null,null,"Si",5]
[5.2,"¿Hay un compromiso claro de apoyo a la mejora de la higiene de las manos por parte de los siguientes miembros de la dirección del centro? (por ejemplo, un compromiso escrito o verbal con la promoción de la higiene de las manos ante la mayoría de los profesionales sanitarios del centro?"]
["5.2a ","El director ejecutivo","No",0,0]
[null,null,"Si",10]
["5.2b","El director médico","No",0,0]
[null,null,"Si",5]
["5.2c ","El director de enfermería","No",0,0]
[null,null,"Si",5]
[5.3,"¿Se ha formulado un plan claro de promoción de la higiene de las manos en todo el centro para el 5 de mayo (iniciativa anual Salve vidas, lavese las manos)?","No",0,0]
[null,null,"Si",10]
[5.4,"¿Hay sistemas para identificar a los líderes de la higiene de las manos en cada una de las disciplinas existentes en el hospital?"]
["5.4a ","Un sistema para designar los líderes de la higiene de las manos11","No",0,0]
[null,null,"Si",5]
["5.4b ","Un sistema de reconocimiento y utilización de modelos de comportamiento con respecto a la higiene de las manos12","No",0,0]
[null,null,"Si",5]
[5.5,"Con respecto a la participación de los pacientes en la promoción de la higiene de las manos:"]
["5.5a ","¿Cómo están los pacientes informados de la importancia de la higiene de las manos? (por ejemplo, con un folleto)","No",0,0]
[null,null,"Si",5]
["5.5b ","¿Se ha instaurado un programa formal para lograr su participación?","No",0,0]
[null,null,"Si",10]
[5.6,"¿Se están aplicando en el centro iniciativas de apoyo a la mejora continua? Por ejemplo:"]
["5.6a ","Material didáctico informativo sobre la higiene de las manos","No",0,0]
[null,null,"Si",5]
["5.6b ","Fijación de una meta institucional relacionada con la higiene de las manos como objetivo anual","No",0,0]
[null,null,"Si",5]
["5.6c ","Un sistema de intercambio intrainstitucional de innovaciones fiables y probadas en el centro","No",0,0]
[null,null,"Si",5]
["5.6d ","Comunicaciones en las que se mencione regularmente la higiene de las manos (por ejemplo, boletín hospitalario, reuniones clínicas)","No",0,0]
[null,null,"Si",5]
["5.6e","Un sistema de rendición de cuentas del personal13","No",0,0]
[null,null,"Si",5]
["5.6f ","Un sistema de acompañamiento14 para los nuevos empleados","No",0,0]
[null,null,"Si",5]
["No.","Pregunta","Respuesta","Puntos","Puntos obtenidos"]
[6,"Criterios de liderazgo",null,null,{"$f":"SUM(E315:E358)","v":0}]
[null,"Cambio del sistema"]
["6a","Se ha realizado un análisis de los costos y beneficios de los cambios infraestructurales necesarios para posibilitar una higiene de las manos óptima en el lugar de atención","No",0,0]
[null,null,"Si",1]
["6b","La fricción de las manos con un desinfectante a base de alcohol representa al menos un 80% de las acciones de higiene de las manos realizadas en el centro","No",0,0]
[null,null,"Si",1]
[null,"Formación y aprendizaje"]
["6c","El equipo de higiene de las manos ha formado a representantes de otros centros en materia de promoción de la higiene de las manos","No",0,0]
[null,null,"Si",1]
["6d","Se han incorporado los principios de la higiene de las manos a los programas de estudios del personal médico y de enfermería","No",0,0]
[null,null,"Si",1]
[null,"Evaluación y retroalimentación"]
["6e","Se monitorizan las infecciones específicas relacionadas con la atención sanitaria, IRAS (por ejemplo, bacteriemias por Staphylococcus aureus o Gram-negativos, o infecciones relacionadas con dispositivos)","No",0,0]
[null,null,"Si",1]
["6f","Existe un sistema de monitorización de IRAS en entornos de alto riesgo (por ejemplo, unidades de cuidados intensivos y de neonatología)","No",0,0]
[null,null,"Si",1]
["6g","Se realizan estudios de la prevalencia de IRAS en todo el centro con una periodicidad anual, como mínimo","No",0,0]
[null,null,"Si",1]
["6h","Las tasas de IRAS y las tasas de observancia de la higiene de las manos se comunican a la dirección del centro y a los profesionales sanitarios","No",0,0]
[null,null,"Si",1]
["6i","Se realizan evaluaciones estructuradas para comprender los obstáculos a la observancia óptima de la higiene de las manos, así como las causas de las mencionadas infecciones IRAS, y se comunican sus resultados a la dirección del centro","No",0,0]
[null,null,"Si",1]
[null,"Recordatorios en el lugar de trabajo"]
["6j","Existe un sistema para que los profesionales sanitarios del centro diseñen sus propios posters","No",0,0]
[null,null,"Si",1]
["6k","Los posters creados en el centro se utilizan en otros centros","No",0,0]
[null,null,"Si",1]
["6l","En el centro se han creado y probado tipos innovadores de recordatorios sobre la higiene de las manos","No",0,0]
[null,null,"Si",1]
[null,"Clima institucional de seguridad"]
["6m","Se ha elaborado un programa local de investigación de la higiene de las manos que aborda los temas que necesitan ser investigados más a fondo según las directrices de la OMS","No",0,0]
[null,null,"Si",1]
["6n","El centro ha participado activamente en publicaciones o conferencias (exposiciones orales o posters) sobre la higiene de las manos","No",0,0]
[null,null,"Si",1]
["6o","Se pide a los pacientes que recuerden a los profesionales sanitarios que deben lavarse las manos","No",0,0]
[null,null,"Si",1]
["6p","Los pacientes y los visitantes saben cómo proceder correctamente a la higiene de las manos","No",0,0]
[null,null,"Si",1]
["6q","El Hospital contribuye a la campaña nacional de higiene de las manos (si la hay) y le presta su apoyo","No",0,0]
[null,null,"Si",1]
["6r","La evaluación del impacto de la campaña de higiene de las manos se ha incorporado a la planificación futura del programa de control de las infecciones","No",0,0]
[null,null,"Si",1]
["6s","Se fija una meta anual de mejora de la observancia de la higiene de las manos para todo el hospital","No",0,0]
[null,null,"Si",1]
["6t","Se ha alcanzado esa meta el año pasado, en caso de que el hospital la haya establecido","No",0,0]
[null,null,"Si",1]
[]
["Notas"]
["\n1. Eficacia: Los productos a base de alcohol para desinfectarse las manos deben cumplir normas reconocidas de eficacia antimicrobiana para la antisepsia de las manos (normas ASTM o EN). Los que poseen una eficacia antimicrobiana óptima suelen contener un 75 a 85% de etanol, isopropanol o npropanol, o una combinación de estos productos. Las formulaciones recomendadas por la OMS contienen un 75% v/v de isopropanol o un 80% v/v de etanol.\n\n2. Tolerabilidad cutánea: Existen datos fiables que demuestran que el desinfectante a base de alcohol para frotarse las manos es bien tolerado por la piel del personal sanitario (es decir, no la daña ni irrita) cuando se utiliza en la atención clínica. Como referencia se puede utilizar el documento de la OMS Protocol for Evaluation of Tolerability and Acceptability of Alcohol-based Handrub in Use or Planned to be Introduced.\n\n3. Lugar de prestación de la asistencia: Es el lugar en el que se reúnen los tres elementos: el paciente, el profesional sanitario y la atención o tratamiento que requiere contacto con el paciente o su entorno (la llamada zona del paciente). En ese lugar debe haber acceso al producto sin necesidad de abandonar la zona del paciente (lo ideal es que se encuentre al alcance de la mano del profesional o en un radio de 2 metros).\n\n4. Agua corriente limpia: Suministro de agua por tubería colectiva (o en caso de que no haya, procedente de un depósito local con desinfección apropiada) que cumpla las normas de seguridad apropiadas con respecto a la contaminación microbiológica y química. Podrá encontrar más información en Essential environmental health standards in health care (Ginebra, Organización Mundial de la Salud, 2008, http://whqlibdoc.who.int/publications/2008/9789241547239_eng.pdf).\n\n5. Jabón: Producto a base de detergente que no contiene antimicrobianos añadidos o los contiene tan solo como conservantes. Puede presentarse en barra, pañuelos o líquido.\n\n6. Infraestructura: Aquí se refiere a las instalaciones, equipos y productos necesarios para lograr prácticas óptimas de higiene de las manos en el centro. Concretamente, se refiere a los indicadores incluidos en las preguntas 1.1 a 1.5, que se exponen detalladamente en la publicación de la OMS Guidelines on Hand Hygiene in Health Care, 2009, Parte I, Capítulo 23.5 (por ejemplo, disponibilidad de desinfectantes a base de alcohol para frotarse las manos en todos los lugares de prestación de atención, suministro continuo de agua corriente limpia, o razón lavabos:cama de 1:10, como mínimo, con jabón y toallas de un solo uso en cada lavabo).\n\n7. Formación en materia de higiene de las manos: Esta formación puede conseguirse con diferentes métodos, pero la información suministrada debe basarse en la publicación de la OMS Multimodal Hand Hygiene Improvement Strategy o en materiales similares. La formación debe incluir:\n• La definición, el impacto y la carga de las infecciones relacionadas con la atención sanitaria (IRAS)\n• Las principales vías de transmisión de los patógenos causantes de las IRAS.\n• La prevención de las IRAS y el papel crucial de la higiene de las manos.\n• Las indicaciones de la higiene de las manos (basadas en el póster de la OMS Sus 5 momentos para la higiene de las manos).\n• Las técnicas correctas para proceder a la higiene de las manos (véanse los pósteres Cómo desinfectarse las manos y Cómo lavarse las manos).\n\n8. Profesional suficientemente capacitado: Profesional médico o de enfermería con formación en materia de control de las infecciones o de enfermedades infecciosas cuyas tareas oficiales incluyan un tiempo dedicado a la formación del personal. En algunos entornos puede tratarse de personal médico o de enfermería con labores clínicas, pero que tenga un tiempo asignado para adquirir conocimientos profundos sobre las prácticas correctas de higiene de las manos y los datos científicos pertinentes (los conocimientos mínimos necesarios se encuentran en las publicaciones de la OMS Guidelines on Hand Hygiene in Health Care y el Manual técnico de referencia para la higiene de manos).\n\n9. Epi InfoTM: Este programa informático puede descargarse gratuitamente en el sitio web de los CDC (http://www.cdc.gov/epiinfo/)\n\n10. Equipo encargado de la higiene de las manos: Su composición puede variar. Generalmente se trata de la unidad de control de infecciones, pero, dependiendo de los recursos disponibles, puede ir desde una sola persona encargada de la gestión del programa de higiene de las manos hasta un grupo de personas de varios departamentos del centro que celebre reuniones dedicadas al programa\nde higiene de las manos.\n\n11. Líderes de la higiene de las manos: Personas comprometidas con las normas de la seguridad del paciente y la higiene de las manos que asumen la responsabilidad de dar publicidad a un proyecto sobre estetema en su servicio o en la totalidad del centro.\n\n12. Modelos de comportamiento con respecto a la higiene de las manos: Personas que sirven como ejemplo y cuyo comportamiento es emulado por los demás. Deben tener una observancia de la higiene de las manos del 80% como mínimo, recordar a los demás lo importante que es dicha observancia, y ser capaces de transmitir los conocimientos prácticos reflejados en el póster de la OMS Sus 5 momentos para la higiene de las manos.\n\n13. Sistema de rendición de cuentas personal: Se han implantado acciones explícitas para estimular entre los profesionales sanitarios la rendición de cuentas acerca de sus comportamientos relacionados con la higiene de las manos. Por ejemplo: notificaciones de los observadores o los especialistas en control de las infecciones, reproches de los compañeros y presentación de informes a la dirección del centro, con posibles repercusiones en las evaluaciones individuales.\n\n14. Sistema de acompañamiento: Programa en el que los nuevos profesionales sanitarios del centro se emparejan con compañeros de mayor antigüedad que asumen la responsabilidad de inculcarles\nla cultura de la higiene de las manos en el entorno asistencial (en particular, les ofrecerán formación práctica acerca de las indicaciones y las técnicas de higiene de las manos y les explicarán las iniciativas de promoción de la higiene de las manos que haya en el centro).\n15. Atención ambulatoria: Cualquier servicio de atención prestada a los pacientes que no son admitidos como pacientes hospitalizados en un hospital.http://www.who.int/gpsc/5may/hh_guide.pdf"]

{"sheet":"VALI","index":3,"n_rows":219,"n_cols":30,"rows_kept":219,"cut":false,"hidden":true,"merged":[]}
["Year","Salutatory",1.1000000000000001,1.2,1.3,"1.E","2.1a","2.1b","2.2a",2.2999999999999998,"3.4a","3.4b","3.5b.i","4.1a","4.1b","4.1c",4.2,null,"YN","Setting","Sector","Type of Care","Type of Facility","Area","Region","email","Country",null,"Ward_Consumption","Outpatient_Care_Consumption"]
[1995,"Srita.",0,0,0,0,0,0,0,0,0,0,0,0,0,0,0,0,"Si","Rural","Publico","Atención medica integral ambulatoria","General/Universitario/ Enseñanza","Area específica","Africa","hhea_africa@bbraun.com","Afghanistan",null,"Hospital Completo","Clínica de Atención Ambulatoria Completa"]
[1996,"Sra.",5,5,10,5,5,20,5,15,5,5,7.5,15,5,5,10,1,"No","Ciudad","Privado","Atención medica integral ambulatoria y hospitalaria","Privado","Hospital completo","AP","hhea_ap@bbraun.com","Albania",null,"Area específica","Area específica"]
[1997,"Sr. ",10,10,null,null,10,null,null,null,10,10,null,20,10,7.5,15,null,null,null,null,"Atención medica hospitalaria especializada",null,null,"EU","hhea_eu@bbraun.com","Algeria"]
[1998,null,30,null,null,null,20,null,null,null,15,15,null,25,15,10,null,null,null,null,null,"Otro",null,null,"LATAM","hhea_latam_br@bbraun.com","American Samoa"]
[1999,null,50,null,null,null,null,null,null,null,null,20,null,null,null,null,null,null,null,null,null,null,null,null,"MENA","hhea_mena@bbraun.com","Andorra"]
[2000,null,null,null,null,null,null,null,null,null,null,25,null,null,null,null,null,null,null,null,null,null,null,null,null,null,"Angola"]
[2001,null,null,null,null,null,null,null,null,null,null,30,null,null,null,null,null,null,null,null,null,null,null,null,null,null,"Anguilla"]
[2002,null,null,null,null,null,null,null,null,null,null,null,null,null,null,null,null,null,null,null,null,null,null,null,null,null,"Antigua and Barbuda"]
[2003,null,null,null,null,null,null,null,null,null,null,null,null,null,null,null,null,null,null,null,null,null,null,null,null,null,"Argentina"]
[2004,null,null,null,null,null,null,null,null,null,null,null,null,null,null,null,null,null,null,null,null,null,null,null,null,null,"Armenia"]
[2005,null,null,null,null,null,null,null,null,null,null,null,null,null,null,null,null,null,null,null,null,null,null,null,null,null,"Aruba"]
[2006,null,null,null,null,null,null,null,null,null,null,null,null,null,null,null,null,null,null,null,null,null,null,null,null,null,"Australia"]
[2007,null,null,null,null,null,null,null,null,null,null,null,null,null,null,null,null,null,null,null,null,null,null,null,null,null,"Austria"]
[2008,null,null,null,null,null,null,null,null,null,null,null,null,null,null,null,null,null,null,null,null,null,null,null,null,null,"Azerbaijan"]
[2009,null,null,null,null,null,null,null,null,null,null,null,null,null,null,null,null,null,null,null,null,null,null,null,null,null,"Bahamas"]
[2010,null,null,null,null,null,null,null,null,null,null,null,null,null,null,null,null,null,null,null,null,null,null,null,null,null,"Bahrain"]
[2011,null,null,null,null,null,null,null,null,null,null,null,null,null,null,null,null,null,null,null,null,null,null,null,null,null,"Bangladesh"]
[2012,null,null,null,null,null,null,null,null,null,null,null,null,null,null,null,null,null,null,null,null,null,null,null,null,null,"Barbados"]
[2013,null,null,null,null,null,null,null,null,null,null,null,null,null,null,null,null,null,null,null,null,null,null,null,null,null,"Belarus"]
[2014,null,null,null,null,null,null,null,null,null,null,null,null,null,null,null,null,null,null,null,null,null,null,null,null,null,"Belgium"]
[2015,null,null,null,null,null,null,null,null,null,null,null,null,null,null,null,null,null,null,null,null,null,null,null,null,null,"Belize"]
[2016,null,null,null,null,null,null,null,null,null,null,null,null,null,null,null,null,null,null,null,null,null,null,null,null,null,"Benin"]
[2017,null,null,null,null,null,null,null,null,null,null,null,null,null,null,null,null,null,null,null,null,null,null,null,null,null,"Bermuda"]
[2018,null,null,null,null,null,null,null,null,null,null,null,null,null,null,null,null,null,null,null,null,null,null,null,null,null,"Bhutan"]
[2019,null,null,null,null,null,null,null,null,null,null,null,null,null,null,null,null,null,null,null,null,null,null,null,null,null,"Bolivia"]
[2020,null,null,null,null,null,null,null,null,null,null,null,null,null,null,null,null,null,null,null,null,null,null,null,null,null,"Bosnia and Herzegovina"]
[2021,null,null,null,null,null,null,null,null,null,null,null,null,null,null,null,null,null,null,null,null,null,null,null,null,null,"Botswana"]
[2022,null,null,null,null,null,null,null,null,null,null,null,null,null,null,null,null,null,null,null,null,null,null,null,null,null,"Brazil"]
[2023,null,null,null,null,null,null,null,null,null,null,null,null,null,null,null,null,null,null,null,null,null,null,null,null,null,"British Virgin Islands"]
[2024,null,null,null,null,null,null,null,null,null,null,null,null,null,null,null,null,null,null,null,null,null,null,null,null,null,"Brunei Darussalam"]
[2025,null,null,null,null,null,null,null,null,null,null,null,null,null,null,null,null,null,null,null,null,null,null,null,null,null,"Bulgaria"]
[2026,null,null,null,null,null,null,null,null,null,null,null,null,null,null,null,null,null,null,null,null,null,null,null,null,null,"Burkina Faso"]
[null,null,null,null,null,null,null,null,null,null,null,null,null,null,null,null,null,null,null,null,null,null,null,null,null,null,"Burundi"]
[null,null,null,null,null,null,null,null,null,null,null,null,null,null,null,null,null,null,null,null,null,null,null,null,null,null,"Cambodia"]
[null,null,null,null,null,null,null,null,null,null,null,null,null,null,null,null,null,null,null,null,null,null,null,null,null,null,"Cameroon"]
[null,null,null,null,null,null,null,null,null,null,null,null,null,null,null,null,null,null,null,null,null,null,null,null,null,null,"Canada"]
[null,null,null,null,null,null,null,null,null,null,null,null,null,null,null,null,null,null,null,null,null,null,null,null,null,null,"Cape Verde"]
[null,null,null,null,null,null,null,null,null,null,null,null,null,null,null,null,null,null,null,null,null,null,null,null,null,null,"Cayman Islands"]
[null,null,null,null,null,null,null,null,null,null,null,null,null,null,null,null,null,null,null,null,null,null,null,null,null,null,"Central African Rep."]
[null,null,null,null,null,null,null,null,null,null,null,null,null,null,null,null,null,null,null,null,null,null,null,null,null,null,"Chad"]
[null,null,null,null,null,null,null,null,null,null,null,null,null,null,null,null,null,null,null,null,null,null,null,null,null,null,"Chile"]
[null,null,null,null,null,null,null,null,null,null,null,null,null,null,null,null,null,null,null,null,null,null,null,null,null,null,"China"]
[null,null,null,null,null,null,null,null,null,null,null,null,null,null,null,null,null,null,null,null,null,null,null,null,null,null,"Colombia"]
[null,null,null,null,null,null,null,null,null,null,null,null,null,null,null,null,null,null,null,null,null,null,null,null,null,null,"Comoros"]
[null,null,null,null,null,null,null,null,null,null,null,null,null,null,null,null,null,null,null,null,null,null,null,null,null,null,"Congo"]
[null,null,null,null,null,null,null,null,null,null,null,null,null,null,null,null,null,null,null,null,null,null,null,null,null,null,"Cook Islands"]
[null,null,null,null,null,null,null,null,null,null,null,null,null,null,null,null,null,null,null,null,null,null,null,null,null,null,"Costa Rica"]
[null,null,null,null,null,null,null,null,null,null,null,null,null,null,null,null,null,null,null,null,null,null,null,null,null,null,"Cote d'Ivoire"]
[null,null,null,null,null,null,null,null,null,null,null,null,null,null,null,null,null,null,null,null,null,null,null,null,null,null,"Croatia"]
[null,null,null,null,null,null,null,null,null,null,null,null,null,null,null,null,null,null,null,null,null,null,null,null,null,null,"Cuba"]
[null,null,null,null,null,null,null,null,null,null,null,null,null,null,null,null,null,null,null,null,null,null,null,null,null,null,"Cyprus"]
[null,null,null,null,null,null,null,null,null,null,null,null,null,null,null,null,null,null,null,null,null,null,null,null,null,null,"Czech Republic"]
[null,null,null,null,null,null,null,null,null,null,null,null,null,null,null,null,null,null,null,null,null,null,null,null,null,null,"Dem. Rep. of Congo"]
[null,null,null,null,null,null,null,null,null,null,null,null,null,null,null,null,null,null,null,null,null,null,null,null,null,null,"Denmark"]
[null,null,null,null,null,null,null,null,null,null,null,null,null,null,null,null,null,null,null,null,null,null,null,null,null,null,"Djibouti"]
[null,null,null,null,null,null,null,null,null,null,null,null,null,null,null,null,null,null,null,null,null,null,null,null,null,null,"Dominica"]
[null,null,null,null,null,null,null,null,null,null,null,null,null,null,null,null,null,null,null,null,null,null,null,null,null,null,"Dominican Republic"]
[null,null,null,null,null,null,null,null,null,null,null,null,null,null,null,null,null,null,null,null,null,null,null,null,null,null,"DPR Korea"]
[null,null,null,null,null,null,null,null,null,null,null,null,null,null,null,null,null,null,null,null,null,null,null,null,null,null,"Ecuador"]
[null,null,null,null,null,null,null,null,null,null,null,null,null,null,null,null,null,null,null,null,null,null,null,null,null,null,"Egypt"]
[null,null,null,null,null,null,null,null,null,null,null,null,null,null,null,null,null,null,null,null,null,null,null,null,null,null,"El Salvador"]
[null,null,null,null,null,null,null,null,null,null,null,null,null,null,null,null,null,null,null,null,null,null,null,null,null,null,"Equatorial Guinea"]
[null,null,null,null,null,null,null,null,null,null,null,null,null,null,null,null,null,null,null,null,null,null,null,null,null,null,"Eritrea"]
[null,null,null,null,null,null,null,null,null,null,null,null,null,null,null,null,null,null,null,null,null,null,null,null,null,null,"Estonia"]
[null,null,null,null,null,null,null,null,null,null,null,null,null,null,null,null,null,null,null,null,null,null,null,null,null,null,"Ethiopia"]
[null,null,null,null,null,null,null,null,null,null,null,null,null,null,null,null,null,null,null,null,null,null,null,null,null,null,"Fiji"]
[null,null,null,null,null,null,null,null,null,null,null,null,null,null,null,null,null,null,null,null,null,null,null,null,null,null,"Finland"]
[null,null,null,null,null,null,null,null,null,null,null,null,null,null,null,null,null,null,null,null,null,null,null,null,null,null,"France"]
[null,null,null,null,null,null,null,null,null,null,null,null,null,null,null,null,null,null,null,null,null,null,null,null,null,null,"French Guiana"]
[null,null,null,null,null,null,null,null,null,null,null,null,null,null,null,null,null,null,null,null,null,null,null,null,null,null,"French Polynesia (France)"]
[null,null,null,null,null,null,null,null,null,null,null,null,null,null,null,null,null,null,null,null,null,null,null,null,null,null,"Gabon"]
[null,null,null,null,null,null,null,null,null,null,null,null,null,null,null,null,null,null,null,null,null,null,null,null,null,null,"Gambia"]
[null,null,null,null,null,null,null,null,null,null,null,null,null,null,null,null,null,null,null,null,null,null,null,null,null,null,"Georgia"]
[null,null,null,null,null,null,null,null,null,null,null,null,null,null,null,null,null,null,null,null,null,null,null,null,null,null,"Germany"]
[null,null,null,null,null,null,null,null,null,null,null,null,null,null,null,null,null,null,null,null,null,null,null,null,null,null,"Ghana"]
[null,null,null,null,null,null,null,null,null,null,null,null,null,null,null,null,null,null,null,null,null,null,null,null,null,null,"Greece"]
[null,null,null,null,null,null,null,null,null,null,null,null,null,null,null,null,null,null,null,null,null,null,null,null,null,null,"Grenada"]
[null,null,null,null,null,null,null,null,null,null,null,null,null,null,null,null,null,null,null,null,null,null,null,null,null,null,"Guadalupe"]
[null,null,null,null,null,null,null,null,null,null,null,null,null,null,null,null,null,null,null,null,null,null,null,null,null,null,"Guam (USA)"]
[null,null,null,null,null,null,null,null,null,null,null,null,null,null,null,null,null,null,null,null,null,null,null,null,null,null,"Guatemala"]
[null,null,null,null,null,null,null,null,null,null,null,null,null,null,null,null,null,null,null,null,null,null,null,null,null,null,"Guinea"]
[null,null,null,null,null,null,null,null,null,null,null,null,null,null,null,null,null,null,null,null,null,null,null,null,null,null,"Guinée-Bissau"]
[null,null,null,null,null,null,null,null,null,null,null,null,null,null,null,null,null,null,null,null,null,null,null,null,null,null,"Guyana"]
[null,null,null,null,null,null,null,null,null,null,null,null,null,null,null,null,null,null,null,null,null,null,null,null,null,null,"Haiti"]
[null,null,null,null,null,null,null,null,null,null,null,null,null,null,null,null,null,null,null,null,null,null,null,null,null,null,"Honduras"]
[null,null,null,null,null,null,null,null,null,null,null,null,null,null,null,null,null,null,null,null,null,null,null,null,null,null,"Hong Kong (China)"]
[null,null,null,null,null,null,null,null,null,null,null,null,null,null,null,null,null,null,null,null,null,null,null,null,null,null,"Hungary"]
[null,null,null,null,null,null,null,null,null,null,null,null,null,null,null,null,null,null,null,null,null,null,null,null,null,null,"Iceland"]
[null,null,null,null,null,null,null,null,null,null,null,null,null,null,null,null,null,null,null,null,null,null,null,null,null,null,"India"]
[null,null,null,null,null,null,null,null,null,null,null,null,null,null,null,null,null,null,null,null,null,null,null,null,null,null,"Indonesia"]
[null,null,null,null,null,null,null,null,null,null,null,null,null,null,null,null,null,null,null,null,null,null,null,null,null,null,"Iran, Islamic Republic of"]
[null,null,null,null,null,null,null,null,null,null,null,null,null,null,null,null,null,null,null,null,null,null,null,null,null,null,"Iraq"]
[null,null,null,null,null,null,null,null,null,null,null,null,null,null,null,null,null,null,null,null,null,null,null,null,null,null,"Ireland"]
[null,null,null,null,null,null,null,null,null,null,null,null,null,null,null,null,null,null,null,null,null,null,null,null,null,null,"Israel"]
[null,null,null,null,null,null,null,null,null,null,null,null,null,null,null,null,null,null,null,null,null,null,null,null,null,null,"Italy"]
[null,null,null,null,null,null,null,null,null,null,null,null,null,null,null,null,null,null,null,null,null,null,null,null,null,null,"Jamaica"]
[null,null,null,null,null,null,null,null,null,null,null,null,null,null,null,null,null,null,null,null,null,null,null,null,null,null,"Japan"]
[null,null,null,null,null,null,null,null,null,null,null,null,null,null,null,null,null,null,null,null,null,null,null,null,null,null,"Jordan"]
[null,null,null,null,null,null,null,null,null,null,null,null,null,null,null,null,null,null,null,null,null,null,null,null,null,null,"Kazakhstan"]
[null,null,null,null,null,null,null,null,null,null,null,null,null,null,null,null,null,null,null,null,null,null,null,null,null,null,"Kenya"]
[null,null,null,null,null,null,null,null,null,null,null,null,null,null,null,null,null,null,null,null,null,null,null,null,null,null,"Kiribati"]
[null,null,null,null,null,null,null,null,null,null,null,null,null,null,null,null,null,null,null,null,null,null,null,null,null,null,"Kuwait"]
[null,null,null,null,null,null,null,null,null,null,null,null,null,null,null,null,null,null,null,null,null,null,null,null,null,null,"Kyrgyzstan"]
[null,null,null,null,null,null,null,null,null,null,null,null,null,null,null,null,null,null,null,null,null,null,null,null,null,null,"Lao People's Democratic Republic"]
[null,null,null,null,null,null,null,null,null,null,null,null,null,null,null,null,null,null,null,null,null,null,null,null,null,null,"Latvia"]
[null,null,null,null,null,null,null,null,null,null,null,null,null,null,null,null,null,null,null,null,null,null,null,null,null,null,"Lebanon"]
[null,null,null,null,null,null,null,null,null,null,null,null,null,null,null,null,null,null,null,null,null,null,null,null,null,null,"Lesotho"]
[null,null,null,null,null,null,null,null,null,null,null,null,null,null,null,null,null,null,null,null,null,null,null,null,null,null,"Liberia"]
[null,null,null,null,null,null,null,null,null,null,null,null,null,null,null,null,null,null,null,null,null,null,null,null,null,null,"Libya"]
[null,null,null,null,null,null,null,null,null,null,null,null,null,null,null,null,null,null,null,null,null,null,null,null,null,null,"Lithuania"]
[null,null,null,null,null,null,null,null,null,null,null,null,null,null,null,null,null,null,null,null,null,null,null,null,null,null,"Luxembourg"]
[null,null,null,null,null,null,null,null,null,null,null,null,null,null,null,null,null,null,null,null,null,null,null,null,null,null,"Macao (China)"]
[null,null,null,null,null,null,null,null,null,null,null,null,null,null,null,null,null,null,null,null,null,null,null,null,null,null,"Madagascar"]
[null,null,null,null,null,null,null,null,null,null,null,null,null,null,null,null,null,null,null,null,null,null,null,null,null,null,"Malawi"]
[null,null,null,null,null,null,null,null,null,null,null,null,null,null,null,null,null,null,null,null,null,null,null,null,null,null,"Malaysia"]
[null,null,null,null,null,null,null,null,null,null,null,null,null,null,null,null,null,null,null,null,null,null,null,null,null,null,"Maldives"]
[null,null,null,null,null,null,null,null,null,null,null,null,null,null,null,null,null,null,null,null,null,null,null,null,null,null,"Mali"]
[null,null,null,null,null,null,null,null,null,null,null,null,null,null,null,null,null,null,null,null,null,null,null,null,null,null,"Malta"]
[null,null,null,null,null,null,null,null,null,null,null,null,null,null,null,null,null,null,null,null,null,null,null,null,null,null,"Marshall Islands"]
[null,null,null,null,null,null,null,null,null,null,null,null,null,null,null,null,null,null,null,null,null,null,null,null,null,null,"Martinique"]
[null,null,null,null,null,null,null,null,null,null,null,null,null,null,null,null,null,null,null,null,null,null,null,null,null,null,"Mauritania"]
[null,null,null,null,null,null,null,null,null,null,null,null,null,null,null,null,null,null,null,null,null,null,null,null,null,null,"Mauritius"]
[null,null,null,null,null,null,null,null,null,null,null,null,null,null,null,null,null,null,null,null,null,null,null,null,null,null,"Mexico"]
[null,null,null,null,null,null,null,null,null,null,null,null,null,null,null,null,null,null,null,null,null,null,null,null,null,null,"Micronesia, Federated States of"]
[null,null,null,null,null,null,null,null,null,null,null,null,null,null,null,null,null,null,null,null,null,null,null,null,null,null,"Monaco"]
[null,null,null,null,null,null,null,null,null,null,null,null,null,null,null,null,null,null,null,null,null,null,null,null,null,null,"Mongolia"]
[null,null,null,null,null,null,null,null,null,null,null,null,null,null,null,null,null,null,null,null,null,null,null,null,null,null,"Montenegro"]
[null,null,null,null,null,null,null,null,null,null,null,null,null,null,null,null,null,null,null,null,null,null,null,null,null,null,"Montserrat"]
[null,null,null,null,null,null,null,null,null,null,null,null,null,null,null,null,null,null,null,null,null,null,null,null,null,null,"Morocco"]
[null,null,null,null,null,null,null,null,null,null,null,null,null,null,null,null,null,null,null,null,null,null,null,null,null,null,"Mozambique"]
[null,null,null,null,null,null,null,null,null,null,null,null,null,null,null,null,null,null,null,null,null,null,null,null,null,null,"Myanmar"]
[null,null,null,null,null,null,null,null,null,null,null,null,null,null,null,null,null,null,null,null,null,null,null,null,null,null,"Namibia"]
[null,null,null,null,null,null,null,null,null,null,null,null,null,null,null,null,null,null,null,null,null,null,null,null,null,null,"Nauru"]
[null,null,null,null,null,null,null,null,null,null,null,null,null,null,null,null,null,null,null,null,null,null,null,null,null,null,"Nepal"]
[null,null,null,null,null,null,null,null,null,null,null,null,null,null,null,null,null,null,null,null,null,null,null,null,null,null,"Netherlands"]
[null,null,null,null,null,null,null,null,null,null,null,null,null,null,null,null,null,null,null,null,null,null,null,null,null,null,"Netherlands Antilles"]
[null,null,null,null,null,null,null,null,null,null,null,null,null,null,null,null,null,null,null,null,null,null,null,null,null,null,"New Caledonia (France)"]
[null,null,null,null,null,null,null,null,null,null,null,null,null,null,null,null,null,null,null,null,null,null,null,null,null,null,"New Zealand"]
[null,null,null,null,null,null,null,null,null,null,null,null,null,null,null,null,null,null,null,null,null,null,null,null,null,null,"Nicaragua"]
[null,null,null,null,null,null,null,null,null,null,null,null,null,null,null,null,null,null,null,null,null,null,null,null,null,null,"Niger"]
[null,null,null,null,null,null,null,null,null,null,null,null,null,null,null,null,null,null,null,null,null,null,null,null,null,null,"Nigeria"]
[null,null,null,null,null,null,null,null,null,null,null,null,null,null,null,null,null,null,null,null,null,null,null,null,null,null,"Niue"]
[null,null,null,null,null,null,null,null,null,null,null,null,null,null,null,null,null,null,null,null,null,null,null,null,null,null,"Northern Mariana Islands, Commonwealth of the"]
[null,null,null,null,null,null,null,null,null,null,null,null,null,null,null,null,null,null,null,null,null,null,null,null,null,null,"Norway"]
[null,null,null,null,null,null,null,null,null,null,null,null,null,null,null,null,null,null,null,null,null,null,null,null,null,null,"Occupied Palestinian territory"]
[null,null,null,null,null,null,null,null,null,null,null,null,null,null,null,null,null,null,null,null,null,null,null,null,null,null,"Oman"]
[null,null,null,null,null,null,null,null,null,null,null,null,null,null,null,null,null,null,null,null,null,null,null,null,null,null,"Pakistan"]
[null,null,null,null,null,null,null,null,null,null,null,null,null,null,null,null,null,null,null,null,null,null,null,null,null,null,"Palau"]
[null,null,null,null,null,null,null,null,null,null,null,null,null,null,null,null,null,null,null,null,null,null,null,null,null,null,"Palestine, see Occupied Palestinian territory"]
[null,null,null,null,null,null,null,null,null,null,null,null,null,null,null,null,null,null,null,null,null,null,null,null,null,null,"Panama"]
[null,null,null,null,null,null,null,null,null,null,null,null,null,null,null,null,null,null,null,null,null,null,null,null,null,null,"Papua New Guinea"]
[null,null,null,null,null,null,null,null,null,null,null,null,null,null,null,null,null,null,null,null,null,null,null,null,null,null,"Paraguay"]
[null,null,null,null,null,null,null,null,null,null,null,null,null,null,null,null,null,null,null,null,null,null,null,null,null,null,"Peru"]
[null,null,null,null,null,null,null,null,null,null,null,null,null,null,null,null,null,null,null,null,null,null,null,null,null,null,"Philippines"]
[null,null,null,null,null,null,null,null,null,null,null,null,null,null,null,null,null,null,null,null,null,null,null,null,null,null,"Pitcairn Islands (UK)"]
[null,null,null,null,null,null,null,null,null,null,null,null,null,null,null,null,null,null,null,null,null,null,null,null,null,null,"Poland"]
[null,null,null,null,null,null,null,null,null,null,null,null,null,null,null,null,null,null,null,null,null,null,null,null,null,null,"Portugal"]
[null,null,null,null,null,null,null,null,null,null,null,null,null,null,null,null,null,null,null,null,null,null,null,null,null,null,"Puerto Rico"]
[null,null,null,null,null,null,null,null,null,null,null,null,null,null,null,null,null,null,null,null,null,null,null,null,null,null,"Qatar"]
[null,null,null,null,null,null,null,null,null,null,null,null,null,null,null,null,null,null,null,null,null,null,null,null,null,null,"Republic of Korea"]
[null,null,null,null,null,null,null,null,null,null,null,null,null,null,null,null,null,null,null,null,null,null,null,null,null,null,"Republic of Moldova"]
[null,null,null,null,null,null,null,null,null,null,null,null,null,null,null,null,null,null,null,null,null,null,null,null,null,null,"Romania"]
[null,null,null,null,null,null,null,null,null,null,null,null,null,null,null,null,null,null,null,null,null,null,null,null,null,null,"Russian Federation"]
[null,null,null,null,null,null,null,null,null,null,null,null,null,null,null,null,null,null,null,null,null,null,null,null,null,null,"Rwanda"]
[null,null,null,null,null,null,null,null,null,null,null,null,null,null,null,null,null,null,null,null,null,null,null,null,null,null,"Saint Kitts and Nevis"]
[null,null,null,null,null,null,null,null,null,null,null,null,null,null,null,null,null,null,null,null,null,null,null,null,null,null,"Saint Lucia"]
[null,null,null,null,null,null,null,null,null,null,null,null,null,null,null,null,null,null,null,null,null,null,null,null,null,null,"Saint Vincent and the Grenadines"]
[null,null,null,null,null,null,null,null,null,null,null,null,null,null,null,null,null,null,null,null,null,null,null,null,null,null,"Samoa"]
[null,null,null,null,null,null,null,null,null,null,null,null,null,null,null,null,null,null,null,null,null,null,null,null,null,null,"San Marino"]
[null,null,null,null,null,null,null,null,null,null,null,null,null,null,null,null,null,null,null,null,null,null,null,null,null,null,"Sao Tome & Principe"]
[null,null,null,null,null,null,null,null,null,null,null,null,null,null,null,null,null,null,null,null,null,null,null,null,null,null,"Saudi Arabia"]
[null,null,null,null,null,null,null,null,null,null,null,null,null,null,null,null,null,null,null,null,null,null,null,null,null,null,"Senegal"]
[null,null,null,null,null,null,null,null,null,null,null,null,null,null,null,null,null,null,null,null,null,null,null,null,null,null,"Serbia"]
[null,null,null,null,null,null,null,null,null,null,null,null,null,null,null,null,null,null,null,null,null,null,null,null,null,null,"Seychelles"]
[null,null,null,null,null,null,null,null,null,null,null,null,null,null,null,null,null,null,null,null,null,null,null,null,null,null,"Sierra Leone"]
[null,null,null,null,null,null,null,null,null,null,null,null,null,null,null,null,null,null,null,null,null,null,null,null,null,null,"Singapore"]
[null,null,null,null,null,null,null,null,null,null,null,null,null,null,null,null,null,null,null,null,null,null,null,null,null,null,"Slovakia"]
[null,null,null,null,null,null,null,null,null,null,null,null,null,null,null,null,null,null,null,null,null,null,null,null,null,null,"Slovenia"]
[null,null,null,null,null,null,null,null,null,null,null,null,null,null,null,null,null,null,null,null,null,null,null,null,null,null,"Solomon Islands"]
[null,null,null,null,null,null,null,null,null,null,null,null,null,null,null,null,null,null,null,null,null,null,null,null,null,null,"Somalia"]
[null,null,null,null,null,null,null,null,null,null,null,null,null,null,null,null,null,null,null,null,null,null,null,null,null,null,"South Africa"]
[null,null,null,null,null,null,null,null,null,null,null,null,null,null,null,null,null,null,null,null,null,null,null,null,null,null,"South Sudan"]
[null,null,null,null,null,null,null,null,null,null,null,null,null,null,null,null,null,null,null,null,null,null,null,null,null,null,"Spain"]
[null,null,null,null,null,null,null,null,null,null,null,null,null,null,null,null,null,null,null,null,null,null,null,null,null,null,"Sri Lanka"]
[null,null,null,null,null,null,null,null,null,null,null,null,null,null,null,null,null,null,null,null,null,null,null,null,null,null,"Sudan"]
[null,null,null,null,null,null,null,null,null,null,null,null,null,null,null,null,null,null,null,null,null,null,null,null,null,null,"Suriname"]
[null,null,null,null,null,null,null,null,null,null,null,null,null,null,null,null,null,null,null,null,null,null,null,null,null,null,"Swaziland"]
[null,null,null,null,null,null,null,null,null,null,null,null,null,null,null,null,null,null,null,null,null,null,null,null,null,null,"Sweden"]
[null,null,null,null,null,null,null,null,null,null,null,null,null,null,null,null,null,null,null,null,null,null,null,null,null,null,"Switzerland"]
[null,null,null,null,null,null,null,null,null,null,null,null,null,null,null,null,null,null,null,null,null,null,null,null,null,null,"Syrian Arab Republic"]
[null,null,null,null,null,null,null,null,null,null,null,null,null,null,null,null,null,null,null,null,null,null,null,null,null,null,"Tajikistan"]
[null,null,null,null,null,null,null,null,null,null,null,null,null,null,null,null,null,null,null,null,null,null,null,null,null,null,"Thailand"]
[null,null,null,null,null,null,null,null,null,null,null,null,null,null,null,null,null,null,null,null,null,null,null,null,null,null,"The former Yugoslav Republic of Macedonia"]
[null,null,null,null,null,null,null,null,null,null,null,null,null,null,null,null,null,null,null,null,null,null,null,null,null,null,"Timor-Leste"]
[null,null,null,null,null,null,null,null,null,null,null,null,null,null,null,null,null,null,null,null,null,null,null,null,null,null,"Togo"]
[null,null,null,null,null,null,null,null,null,null,null,null,null,null,null,null,null,null,null,null,null,null,null,null,null,null,"Tokelau* (New Zealand)"]
[null,null,null,null,null,null,null,null,null,null,null,null,null,null,null,null,null,null,null,null,null,null,null,null,null,null,"Tonga"]
[null,null,null,null,null,null,null,null,null,null,null,null,null,null,null,null,null,null,null,null,null,null,null,null,null,null,"Trinidad and Tobago"]
[null,null,null,null,null,null,null,null,null,null,null,null,null,null,null,null,null,null,null,null,null,null,null,null,null,null,"Tunisia"]
[null,null,null,null,null,null,null,null,null,null,null,null,null,null,null,null,null,null,null,null,null,null,null,null,null,null,"Turkey"]
[null,null,null,null,null,null,null,null,null,null,null,null,null,null,null,null,null,null,null,null,null,null,null,null,null,null,"Turkmenistan"]
[null,null,null,null,null,null,null,null,null,null,null,null,null,null,null,null,null,null,null,null,null,null,null,null,null,null,"Turks and Caicos Islands"]
[null,null,null,null,null,null,null,null,null,null,null,null,null,null,null,null,null,null,null,null,null,null,null,null,null,null,"Tuvalu"]
[null,null,null,null,null,null,null,null,null,null,null,null,null,null,null,null,null,null,null,null,null,null,null,null,null,null,"Uganda"]
[null,null,null,null,null,null,null,null,null,null,null,null,null,null,null,null,null,null,null,null,null,null,null,null,null,null,"Ukraine"]
[null,null,null,null,null,null,null,null,null,null,null,null,null,null,null,null,null,null,null,null,null,null,null,null,null,null,"United Arab Emirates"]
[null,null,null,null,null,null,null,null,null,null,null,null,null,null,null,null,null,null,null,null,null,null,null,null,null,null,"United Kingdom of Great Britain and Northern Ireland"]
[null,null,null,null,null,null,null,null,null,null,null,null,null,null,null,null,null,null,null,null,null,null,null,null,null,null,"United Republic of Tanzania"]
[null,null,null,null,null,null,null,null,null,null,null,null,null,null,null,null,null,null,null,null,null,null,null,null,null,null,"United States"]
[null,null,null,null,null,null,null,null,null,null,null,null,null,null,null,null,null,null,null,null,null,null,null,null,null,null,"Uruguay"]
[null,null,null,null,null,null,null,null,null,null,null,null,null,null,null,null,null,null,null,null,null,null,null,null,null,null,"Uzbekistan"]
[null,null,null,null,null,null,null,null,null,null,null,null,null,null,null,null,null,null,null,null,null,null,null,null,null,null,"Vanuatu"]
[null,null,null,null,null,null,null,null,null,null,null,null,null,null,null,null,null,null,null,null,null,null,null,null,null,null,"Venezuela"]
[null,null,null,null,null,null,null,null,null,null,null,null,null,null,null,null,null,null,null,null,null,null,null,null,null,null,"Viet Nam"]
[null,null,null,null,null,null,null,null,null,null,null,null,null,null,null,null,null,null,null,null,null,null,null,null,null,null,"Wallis and Futuna"]
[null,null,null,null,null,null,null,null,null,null,null,null,null,null,null,null,null,null,null,null,null,null,null,null,null,null,"Yemen"]
[null,null,null,null,null,null,null,null,null,null,null,null,null,null,null,null,null,null,null,null,null,null,null,null,null,null,"Zambia"]
[null,null,null,null,null,null,null,null,null,null,null,null,null,null,null,null,null,null,null,null,null,null,null,null,null,null,"Zimbabwe"]

{"sheet":"Data_in_one_row","index":4,"n_rows":2,"n_cols":230,"rows_kept":2,"cut":false,"hidden":true,"merged":[]}
["Región","Año","Dirección","Primer Nombre","Apellido","Titulo","Departamento","Hospital / Institución","Dirección","Código Postal","Ciudad","Pais/Estado","Telefono  N°","Fax N°","Celular N°","Correo Electrónico","Infraestructura del Hospital","Sector","Nivel de atención","Tipo de Hospital/centro","N° de Quirofanos","N° de camas","N° de especialistas en infecciones/Dr","N° de enfermeras en Control de Infecciones (Equivalentes a tiempo completo dedicados al control de infecciones)","N° de enfermeras de enlace en CI ","N° de microbiólogos","Año, cuando se inició el programa de higiene de manos en el hospital","Año en que se inició el registro de las tasas de cumplimiento de higiene de las manos","Cambio de Sistema","Capacitación y Edicación","Evaluación y Retroalimentación","Recordatorios en el lugar de trabajao","Clima Institucional de seguridad para Higiene de Manos","TOTAL","Criterios de liderazgo","A","B","C","D","E","F","G1",{"$f":"CONCATENATE(\"G2 \",'EVALUE SU PROGRAMA DE HM'!$C65)","v":"G2 2012"},{"$f":"CONCATENATE(\"G2 \",'EVALUE SU PROGRAMA DE HM'!$C66)","v":"G2 2013"},{"$f":"CONCATENATE(\"G2 \",'EVALUE SU PROGRAMA DE HM'!$C67)","v":"G2 2014"},{"$f":"CONCATENATE(\"G2 \",'EVALUE SU PROGRAMA DE HM'!$C68)","v":"G2 2015"},{"$f":"CONCATENATE(\"G2 \",'EVALUE SU PROGRAMA DE HM'!$C69)","v":"G2 2016"},{"$f":"CONCATENATE(\"G3 \",'EVALUE SU PROGRAMA DE HM'!$C70)","v":"G3 2012"},{"$f":"CONCATENATE(\"G3 \",'EVALUE SU PROGRAMA DE HM'!$C71)","v":"G3 2013"},{"$f":"CONCATENATE(\"G3 \",'EVALUE SU PROGRAMA DE HM'!$C72)","v":"G3 2014"},{"$f":"CONCATENATE(\"G3 \",'EVALUE SU PROGRAMA DE HM'!$C73)","v":"G3 2015"},{"$f":"CONCATENATE(\"G3 \",'EVALUE SU PROGRAMA DE HM'!$C74)","v":"G3 2016"},{"$f":"CONCATENATE(\"G4 \",'EVALUE SU PROGRAMA DE HM'!$C75)","v":"G4 2012"},{"$f":"CONCATENATE(\"G4 \",'EVALUE SU PROGRAMA DE HM'!$C76)","v":"G4 2013"},{"$f":"CONCATENATE(\"G4 \",'EVALUE SU PROGRAMA DE HM'!$C77)","v":"G4 2014"},{"$f":"CONCATENATE(\"G4 \",'EVALUE SU PROGRAMA DE HM'!$C78)","v":"G4 2015"},{"$f":"CONCATENATE(\"G4 \",'EVALUE SU PROGRAMA DE HM'!$C79)","v":"G4 2016"},{"$f":"CONCATENATE(\"G5 \",'EVALUE SU PROGRAMA DE HM'!$C80)","v":"G5 2012"},{"$f":"CONCATENATE(\"G5 \",'EVALUE SU PROGRAMA DE HM'!$C81)","v":"G5 2013"},{"$f":"CONCATENATE(\"G5 \",'EVALUE SU PROGRAMA DE HM'!$C82)","v":"G5 2014"},{"$f":"CONCATENATE(\"G5 \",'EVALUE SU PROGRAMA DE HM'!$C83)","v":"G5 2015"},{"$f":"CONCATENATE(\"G5 \",'EVALUE SU PROGRAMA DE HM'!$C84)","v":"G5 2016"},{"$f":"CONCATENATE(\"G6 \",'EVALUE SU PROGRAMA DE HM'!$C85)","v":"G6 2012"},{"$f":"CONCATENATE(\"G6 \",'EVALUE SU PROGRAMA DE HM'!$C86)","v":"G6 2013"},{"$f":"CONCATENATE(\"G6 \",'EVALUE SU PROGRAMA DE HM'!$C87)","v":"G6 2014"},{"$f":"CONCATENATE(\"G6 \",'EVALUE SU PROGRAMA DE HM'!$C88)","v":"G6 2015"},{"$f":"CONCATENATE(\"G6 \",'EVALUE SU PROGRAMA DE HM'!$C89)","v":"G6 2016"},"G7",{"$f":"CONCATENATE(\"G8 \",'EVALUE SU PROGRAMA DE HM'!$C92)","v":"G8 2012"},{"$f":"CONCATENATE(\"G8 \",'EVALUE SU PROGRAMA DE HM'!$C93)","v":"G8 2013"},{"$f":"CONCATENATE(\"G8 \",'EVALUE SU PROGRAMA DE HM'!$C94)","v":"G8 2014"},{"$f":"CONCATENATE(\"G8 \",'EVALUE SU PROGRAMA DE HM'!$C95)","v":"G8 2015"},{"$f":"CONCATENATE(\"G8 \",'EVALUE SU PROGRAMA DE HM'!$C96)","v":"G8 2016"},{"$f":"CONCATENATE(\"G9  \",'EVALUE SU PROGRAMA DE HM'!$C97)","v":"G9  2012"},{"$f":"CONCATENATE(\"G9  \",'EVALUE SU PROGRAMA DE HM'!$C98)","v":"G9  2013"},{"$f":"CONCATENATE(\"G9  \",'EVALUE SU PROGRAMA DE HM'!$C99)","v":"G9  2014"},{"$f":"CONCATENATE(\"G9  \",'EVALUE SU PROGRAMA DE HM'!$C100)","v":"G9  2015"},{"$f":"CONCATENATE(\"G9  \",'EVALUE SU PROGRAMA DE HM'!$C101)","v":"G9  2016"},{"$f":"CONCATENATE(\"G10  \",'EVALUE SU PROGRAMA DE HM'!$C102)","v":"G10  2012"},{"$f":"CONCATENATE(\"G10  \",'EVALUE SU PROGRAMA DE HM'!$C103)","v":"G10  2013"},{"$f":"CONCATENATE(\"G10  \",'EVALUE SU PROGRAMA DE HM'!$C104)","v":"G10  2014"},{"$f":"CONCATENATE(\"G10  \",'EVALUE SU PROGRAMA DE HM'!$C105)","v":"G10  2015"},{"$f":"CONCATENATE(\"G10  \",'EVALUE SU PROGRAMA DE HM'!$C106)","v":"G10  2016"},"G11\n",{"$f":"CONCATENATE(\"G12  \",'EVALUE SU PROGRAMA DE HM'!$C109)","v":"G12  2012"},{"$f":"CONCATENATE(\"G12  \",'EVALUE SU PROGRAMA DE HM'!$C110)","v":"G12  2013"},{"$f":"CONCATENATE(\"G12  \",'EVALUE SU PROGRAMA DE HM'!$C111)","v":"G12  2014"},{"$f":"CONCATENATE(\"G12  \",'EVALUE SU PROGRAMA DE HM'!$C112)","v":"G12  2015"},{"$f":"CONCATENATE(\"G12  \",'EVALUE SU PROGRAMA DE HM'!$C113)","v":"G12  2016"},{"$f":"CONCATENATE(\"G13  \",'EVALUE SU PROGRAMA DE HM'!$C114)","v":"G13  2012"},{"$f":"CONCATENATE(\"G13  \",'EVALUE SU PROGRAMA DE HM'!$C115)","v":"G13  2013"},{"$f":"CONCATENATE(\"G13  \",'EVALUE SU PROGRAMA DE HM'!$C116)","v":"G13  2014"},{"$f":"CONCATENATE(\"G13  \",'EVALUE SU PROGRAMA DE HM'!$C117)","v":"G13  2015"},{"$f":"CONCATENATE(\"G13  \",'EVALUE SU PROGRAMA DE HM'!$C118)","v":"G13  2016"},{"$f":"CONCATENATE(\"G14  \",'EVALUE SU PROGRAMA DE HM'!$C119)","v":"G14  2012"},{"$f":"CONCATENATE(\"G14  \",'EVALUE SU PROGRAMA DE HM'!$C120)","v":"G14  2013"},{"$f":"CONCATENATE(\"G14  \",'EVALUE SU PROGRAMA DE HM'!$C121)","v":"G14  2014"},{"$f":"CONCATENATE(\"G14  \",'EVALUE SU PROGRAMA DE HM'!$C122)","v":"G14  2015"},{"$f":"CONCATENATE(\"G14  \",'EVALUE SU PROGRAMA DE HM'!$C123)","v":"G14  2016"},"G15",{"$f":"CONCATENATE(\"G16  \",'EVALUE SU PROGRAMA DE HM'!$C126)","v":"G16  2012"},{"$f":"CONCATENATE(\"G16  \",'EVALUE SU PROGRAMA DE HM'!$C127)","v":"G16  2013"},{"$f":"CONCATENATE(\"G16  \",'EVALUE SU PROGRAMA DE HM'!$C128)","v":"G16  2014"},{"$f":"CONCATENATE(\"G16  \",'EVALUE SU PROGRAMA DE HM'!$C129)","v":"G16  2015"},{"$f":"CONCATENATE(\"G16  \",'EVALUE SU PROGRAMA DE HM'!$C130)","v":"G16  2016"},{"$f":"CONCATENATE(\"G17  \",'EVALUE SU PROGRAMA DE HM'!$C131)","v":"G17  2012"},{"$f":"CONCATENATE(\"G17  \",'EVALUE SU PROGRAMA DE HM'!$C132)","v":"G17  2013"},{"$f":"CONCATENATE(\"G17  \",'EVALUE SU PROGRAMA DE HM'!$C133)","v":"G17  2014"},{"$f":"CONCATENATE(\"G17  \",'EVALUE SU PROGRAMA DE HM'!$C134)","v":"G17  2015"},{"$f":"CONCATENATE(\"G17  \",'EVALUE SU PROGRAMA DE HM'!$C135)","v":"G17  2016"},{"$f":"CONCATENATE(\"G18  \",'EVALUE SU PROGRAMA DE HM'!$C136)","v":"G18  2012"},{"$f":"CONCATENATE(\"G18  \",'EVALUE SU PROGRAMA DE HM'!$C137)","v":"G18  2013"},{"$f":"CONCATENATE(\"G18  \",'EVALUE SU PROGRAMA DE HM'!$C138)","v":"G18  2014"},{"$f":"CONCATENATE(\"G18  \",'EVALUE SU PROGRAMA DE HM'!$C139)","v":"G18  2015"},{"$f":"CONCATENATE(\"G18  \",'EVALUE SU PROGRAMA DE HM'!$C140)","v":"G18  2016"},{"$f":"CONCATENATE(\"G19  I \",'EVALUE SU PROGRAMA DE HM'!$C142)","v":"G19  I 2012"},{"$f":"CONCATENATE(\"G19  \",'EVALUE SU PROGRAMA DE HM'!$C142)","v":"G19  2012"},{"$f":"CONCATENATE(\"G19  I \",'EVALUE SU PROGRAMA DE HM'!$C143)","v":"G19  I 2013"},{"$f":"CONCATENATE(\"G19  \",'EVALUE SU PROGRAMA DE HM'!$C143)","v":"G19  2013"},{"$f":"CONCATENATE(\"G19  I \",'EVALUE SU PROGRAMA DE HM'!$C144)","v":"G19  I 2014"},{"$f":"CONCATENATE(\"G19 \",'EVALUE SU PROGRAMA DE HM'!$C144)","v":"G19 2014"},{"$f":"CONCATENATE(\"G19  I \",'EVALUE SU PROGRAMA DE HM'!$C145)","v":"G19  I 2015"},{"$f":"CONCATENATE(\"G19  \",'EVALUE SU PROGRAMA DE HM'!$C145)","v":"G19  2015"},{"$f":"CONCATENATE(\"G19  I \",'EVALUE SU PROGRAMA DE HM'!$C146)","v":"G19  I 2016"},{"$f":"CONCATENATE(\"G19  \",'EVALUE SU PROGRAMA DE HM'!$C146)","v":"G19  2016"},"G19.1",{"$f":"CONCATENATE(\"G20 I  \",'EVALUE SU PROGRAMA DE HM'!$C148)","v":"G20 I  2012"},{"$f":"CONCATENATE(\"G20  \",'EVALUE SU PROGRAMA DE HM'!$C148)","v":"G20  2012"},{"$f":"CONCATENATE(\"G20 I  \",'EVALUE SU PROGRAMA DE HM'!$C149)","v":"G20 I  2013"},{"$f":"CONCATENATE(\"G20  \",'EVALUE SU PROGRAMA DE HM'!$C149)","v":"G20  2013"},{"$f":"CONCATENATE(\"G20 I  \",'EVALUE SU PROGRAMA DE HM'!$C150)","v":"G20 I  2014"},{"$f":"CONCATENATE(\"G20  \",'EVALUE SU PROGRAMA DE HM'!$C150)","v":"G20  2014"},{"$f":"CONCATENATE(\"G20 I  \",'EVALUE SU PROGRAMA DE HM'!$C151)","v":"G20 I  2015"},{"$f":"CONCATENATE(\"G20 \",'EVALUE SU PROGRAMA DE HM'!$C151)","v":"G20 2015"},{"$f":"CONCATENATE(\"G20 I  \",'EVALUE SU PROGRAMA DE HM'!$C152)","v":"G20 I  2016"},{"$f":"CONCATENATE(\"G20  \",'EVALUE SU PROGRAMA DE HM'!$C152)","v":"G20  2016"},"G20.1",{"$f":"CONCATENATE(\"G21  I \",'EVALUE SU PROGRAMA DE HM'!$C154)","v":"G21  I 2012"},{"$f":"CONCATENATE(\"G21  \",'EVALUE SU PROGRAMA DE HM'!$C154)","v":"G21  2012"},{"$f":"CONCATENATE(\"G21  I \",'EVALUE SU PROGRAMA DE HM'!$C155)","v":"G21  I 2013"},{"$f":"CONCATENATE(\"G21  \",'EVALUE SU PROGRAMA DE HM'!$C155)","v":"G21  2013"},{"$f":"CONCATENATE(\"G21  I \",'EVALUE SU PROGRAMA DE HM'!$C156)","v":"G21  I 2014"},{"$f":"CONCATENATE(\"G21  \",'EVALUE SU PROGRAMA DE HM'!$C156)","v":"G21  2014"},{"$f":"CONCATENATE(\"G21  I \",'EVALUE SU PROGRAMA DE HM'!$C157)","v":"G21  I 2015"},{"$f":"CONCATENATE(\"G21  \",'EVALUE SU PROGRAMA DE HM'!$C157)","v":"G21  2015"},{"$f":"CONCATENATE(\"G21  I \",'EVALUE SU PROGRAMA DE HM'!$C158)","v":"G21  I 2016"},{"$f":"CONCATENATE(\"G21  \",'EVALUE SU PROGRAMA DE HM'!$C158)","v":"G21  2016"},"G21.1","G22","G23a","G23b","G23c","G24",1,1.1000000000000001,1.2,1.3,1.4,1.5,1.6,"1.E",2,"2.1a ","2.1b","2.2a","2.2b","2.2c","2.2d ",2.2999999999999998,2.4,2.5,3,3.1,"3.2a","3.2b","3.3a ","3.3b ","3.3c","3.4a","3.4b ","3.5a","3.5b.i","3.5b.ii ",4,"4.1a ","4.1b ","4.1c ",4.2,4.3,4.4000000000000004,4.5,5,"5.1a ","5.1b","5.1c ","5.2a ","5.2b","5.2c ",5.3,"5.4a ","5.4b ","5.5a ","5.5b ","5.6a ","5.6b ","5.6c ","5.6d ","5.6e","5.6f ",6,"6a","6b","6c","6d","6e","6f","6g","6h","6i","6j","6k","6l","6m","6n","6o","6p","6q","6r","6s","6t"]
[{"$f":"'EVALUE SU PROGRAMA DE HM'!H1","v":"LATAM"},{"$f":"'EVALUE SU PROGRAMA DE HM'!H2","v":2018},{"$f":"'EVALUE SU PROGRAMA DE HM'!$C4","v":0},{"$f":"'EVALUE SU PROGRAMA DE HM'!$C5","v":0},{"$f":"'EVALUE SU PROGRAMA DE HM'!$C6","v":0},{"$f":"'EVALUE SU PROGRAMA DE HM'!$C7","v":0},{"$f":"'EVALUE SU PROGRAMA DE HM'!$C8","v":0},{"$f":"'EVALUE SU PROGRAMA DE HM'!$C9","v":0},{"$f":"'EVALUE SU PROGRAMA DE HM'!$C10","v":0},{"$f":"'EVALUE SU PROGRAMA DE HM'!$C11","v":0},{"$f":"'EVALUE SU PROGRAMA DE HM'!$C12","v":0},{"$f":"'EVALUE SU PROGRAMA DE HM'!$C13","v":0},{"$f":"'EVALUE SU PROGRAMA DE HM'!$C14","v":0},{"$f":"'EVALUE SU PROGRAMA DE HM'!$C15","v":0},{"$f":"'EVALUE SU PROGRAMA DE HM'!$C16","v":0},{"$f":"'EVALUE SU PROGRAMA DE HM'!$C17","v":0},{"$f":"'EVALUE SU PROGRAMA DE HM'!$C19","v":0},{"$f":"'EVALUE SU PROGRAMA DE HM'!C20","v":0},{"$f":"'EVALUE SU PROGRAMA DE HM'!C21","v":0},{"$f":"'EVALUE SU PROGRAMA DE HM'!C22","v":0},{"$f":"'EVALUE SU PROGRAMA DE HM'!C23","v":0},{"$f":"'EVALUE SU PROGRAMA DE HM'!$C24","v":0},{"$f":"'EVALUE SU PROGRAMA DE HM'!$C25","v":0},{"$f":"'EVALUE SU PROGRAMA DE HM'!$C26","v":0},{"$f":"'EVALUE SU PROGRAMA DE HM'!$C27","v":0},{"$f":"'EVALUE SU PROGRAMA DE HM'!$C28","v":0},{"$f":"'EVALUE SU PROGRAMA DE HM'!$C29","v":0},{"$f":"'EVALUE SU PROGRAMA DE HM'!$C30","v":0},{"$f":"'EVALUE SU PROGRAMA DE HM'!$E168","v":0},{"$f":"'EVALUE SU PROGRAMA DE HM'!$E189","v":0},{"$f":"'EVALUE SU PROGRAMA DE HM'!$E213","v":0},{"$f":"'EVALUE SU PROGRAMA DE HM'!$E248","v":0},{"$f":"'EVALUE SU PROGRAMA DE HM'!$E272","v":0},{"$f":"'EVALUE SU PROGRAMA DE HM'!$E32","v":0},{"$f":"'EVALUE SU PROGRAMA DE HM'!$E313","v":0},{"$f":"'EVALUE SU PROGRAMA DE HM'!$B51","v":0},{"$f":"'EVALUE SU PROGRAMA DE HM'!$B53","v":0},{"$f":"'EVALUE SU PROGRAMA DE HM'!$B55","v":0},{"$f":"'EVALUE SU PROGRAMA DE HM'!$B57","v":0},{"$f":"'EVALUE SU PROGRAMA DE HM'!$B59","v":0},{"$f":"'EVALUE SU PROGRAMA DE HM'!$B61","v":0},{"$f":"'EVALUE SU PROGRAMA DE HM'!$E64","v":0},{"$f":"'EVALUE SU PROGRAMA DE HM'!$E65","v":0},{"$f":"'EVALUE SU PROGRAMA DE HM'!$E66","v":0},{"$f":"'EVALUE SU PROGRAMA DE HM'!$E67","v":0},{"$f":"'EVALUE SU PROGRAMA DE HM'!$E68","v":0},{"$f":"'EVALUE SU PROGRAMA DE HM'!$E69","v":0},{"$f":"'EVALUE SU PROGRAMA DE HM'!$E70","v":0},{"$f":"'EVALUE SU PROGRAMA DE HM'!$E71","v":0},{"$f":"'EVALUE SU PROGRAMA DE HM'!$E72","v":0},{"$f":"'EVALUE SU PROGRAMA DE HM'!$E73","v":0},{"$f":"'EVALUE SU PROGRAMA DE HM'!$E74","v":0},{"$f":"'EVALUE SU PROGRAMA DE HM'!$E75","v":0},{"$f":"'EVALUE SU PROGRAMA DE HM'!$E76","v":0},{"$f":"'EVALUE SU PROGRAMA DE HM'!$E77","v":0},{"$f":"'EVALUE SU PROGRAMA DE HM'!$E78","v":0},{"$f":"'EVALUE SU PROGRAMA DE HM'!$E79","v":0},{"$f":"'EVALUE SU PROGRAMA DE HM'!$E80","v":0},{"$f":"'EVALUE SU PROGRAMA DE HM'!$E81","v":0},{"$f":"'EVALUE SU PROGRAMA DE HM'!$E82","v":0},{"$f":"'EVALUE SU PROGRAMA DE HM'!$E83","v":0},{"$f":"'EVALUE SU PROGRAMA DE HM'!$E84","v":0},{"$f":"'EVALUE SU PROGRAMA DE HM'!$E85","v":0},{"$f":"'EVALUE SU PROGRAMA DE HM'!$E86","v":0},{"$f":"'EVALUE SU PROGRAMA DE HM'!$E87","v":0},{"$f":"'EVALUE SU PROGRAMA DE HM'!$E88","v":0},{"$f":"'EVALUE SU PROGRAMA DE HM'!$E89","v":0},{"$f":"'EVALUE SU PROGRAMA DE HM'!E91","v":0},{"$f":"'EVALUE SU PROGRAMA DE HM'!E92","v":0},{"$f":"'EVALUE SU PROGRAMA DE HM'!E93","v":0},{"$f":"'EVALUE SU PROGRAMA DE HM'!E94","v":0},{"$f":"'EVALUE SU PROGRAMA DE HM'!E95","v":0},{"$f":"'EVALUE SU PROGRAMA DE HM'!E96","v":0},{"$f":"'EVALUE SU PROGRAMA DE HM'!E97","v":0},{"$f":"'EVALUE SU PROGRAMA DE HM'!E98","v":0},{"$f":"'EVALUE SU PROGRAMA DE HM'!$E99","v":0},{"$f":"'EVALUE SU PROGRAMA DE HM'!$E100","v":0},{"$f":"'EVALUE SU PROGRAMA DE HM'!$E101","v":0},{"$f":"'EVALUE SU PROGRAMA DE HM'!$E102","v":0},{"$f":"'EVALUE SU PROGRAMA DE HM'!$E103","v":0},{"$f":"'EVALUE SU PROGRAMA DE HM'!$E104","v":0},{"$f":"'EVALUE SU PROGRAMA DE HM'!$E105","v":0},{"$f":"'EVALUE SU PROGRAMA DE HM'!$E106","v":0},{"$f":"'EVALUE SU PROGRAMA DE HM'!$E108","v":0},{"$f":"'EVALUE SU PROGRAMA DE HM'!$E109","v":0},{"$f":"'EVALUE SU PROGRAMA DE HM'!$E110","v":0},{"$f":"'EVALUE SU PROGRAMA DE HM'!$E111","v":0},{"$f":"'EVALUE SU PROGRAMA DE HM'!$E112","v":0},{"$f":"'EVALUE SU PROGRAMA DE HM'!$E113","v":0},{"$f":"'EVALUE SU PROGRAMA DE HM'!$E114","v":0},{"$f":"'EVALUE SU PROGRAMA DE HM'!$E115","v":0},{"$f":"'EVALUE SU PROGRAMA DE HM'!$E116","v":0},{"$f":"'EVALUE SU PROGRAMA DE HM'!$E117","v":0},{"$f":"'EVALUE SU PROGRAMA DE HM'!$E118","v":0},{"$f":"'EVALUE SU PROGRAMA DE HM'!$E119","v":0},{"$f":"'EVALUE SU PROGRAMA DE HM'!$E120","v":0},{"$f":"'EVALUE SU PROGRAMA DE HM'!$E121","v":0},{"$f":"'EVALUE SU PROGRAMA DE HM'!$E122","v":0},{"$f":"'EVALUE SU PROGRAMA DE HM'!$E123","v":0},{"$f":"'EVALUE SU PROGRAMA DE HM'!$E125","v":0},{"$f":"'EVALUE SU PROGRAMA DE HM'!$E126","v":0},{"$f":"'EVALUE SU PROGRAMA DE HM'!$E127","v":0},{"$f":"'EVALUE SU PROGRAMA DE HM'!$E128","v":0},{"$f":"'EVALUE SU PROGRAMA DE HM'!$E129","v":0},{"$f":"'EVALUE SU PROGRAMA DE HM'!$E130","v":0},{"$f":"'EVALUE SU PROGRAMA DE HM'!$E131","v":0},{"$f":"'EVALUE SU PROGRAMA DE HM'!$E132","v":0},{"$f":"'EVALUE SU PROGRAMA DE HM'!$E133","v":0},{"$f":"'EVALUE SU PROGRAMA DE HM'!$E134","v":0},{"$f":"'EVALUE SU PROGRAMA DE HM'!$E135","v":0},{"$f":"'EVALUE SU PROGRAMA DE HM'!$E136","v":0},{"$f":"'EVALUE SU PROGRAMA DE HM'!$E137","v":0},{"$f":"'EVALUE SU PROGRAMA DE HM'!$E138","v":0},{"$f":"'EVALUE SU PROGRAMA DE HM'!$E139","v":0},{"$f":"'EVALUE SU PROGRAMA DE HM'!$E140","v":0},{"$f":"'EVALUE SU PROGRAMA DE HM'!$D142","v":0},{"$f":"'EVALUE SU PROGRAMA DE HM'!$E143","v":0},{"$f":"'EVALUE SU PROGRAMA DE HM'!$D143","v":0},{"$f":"'EVALUE SU PROGRAMA DE HM'!$E143","v":0},{"$f":"'EVALUE SU PROGRAMA DE HM'!$D144","v":0},{"$f":"'EVALUE SU PROGRAMA DE HM'!$E144","v":0},{"$f":"'EVALUE SU PROGRAMA DE HM'!$D145","v":0},{"$f":"'EVALUE SU PROGRAMA DE HM'!$E145","v":0},{"$f":"'EVALUE SU PROGRAMA DE HM'!$D146","v":0},{"$f":"'EVALUE SU PROGRAMA DE HM'!$E146","v":0},{"$f":"'EVALUE SU PROGRAMA DE HM'!D147","v":0},{"$f":"'EVALUE SU PROGRAMA DE HM'!$D148","v":0},{"$f":"'EVALUE SU PROGRAMA DE HM'!$E148","v":0},{"$f":"'EVALUE SU PROGRAMA DE HM'!$D149","v":0},{"$f":"'EVALUE SU PROGRAMA DE HM'!$E149","v":0},{"$f":"'EVALUE SU PROGRAMA DE HM'!$D150","v":0},{"$f":"'EVALUE SU PROGRAMA DE HM'!$E150","v":0},{"$f":"'EVALUE SU PROGRAMA DE HM'!$D151","v":0},{"$f":"'EVALUE SU PROGRAMA DE HM'!$E151","v":0},{"$f":"'EVALUE SU PROGRAMA DE HM'!$D152","v":0},{"$f":"'EVALUE SU PROGRAMA DE HM'!$E152","v":0},{"$f":"'EVALUE SU PROGRAMA DE HM'!D153","v":0},{"$f":"'EVALUE SU PROGRAMA DE HM'!$D154","v":0},{"$f":"'EVALUE SU PROGRAMA DE HM'!$E154","v":0},{"$f":"'EVALUE SU PROGRAMA DE HM'!$D155","v":0},{"$f":"'EVALUE SU PROGRAMA DE HM'!$E155","v":0},{"$f":"'EVALUE SU PROGRAMA DE HM'!$D156","v":0},{"$f":"'EVALUE SU PROGRAMA DE HM'!$E156","v":0},{"$f":"'EVALUE SU PROGRAMA DE HM'!$D157","v":0},{"$f":"'EVALUE SU PROGRAMA DE HM'!$E157","v":0},{"$f":"'EVALUE SU PROGRAMA DE HM'!$D158","v":0},{"$f":"'EVALUE SU PROGRAMA DE HM'!$E158","v":0},{"$f":"'EVALUE SU PROGRAMA DE HM'!D159","v":0},{"$f":"'EVALUE SU PROGRAMA DE HM'!E161","v":"No"},{"$f":"'EVALUE SU PROGRAMA DE HM'!E162","v":0},{"$f":"'EVALUE SU PROGRAMA DE HM'!E163","v":0},{"$f":"'EVALUE SU PROGRAMA DE HM'!E164","v":0},{"$f":"'EVALUE SU PROGRAMA DE HM'!E165","v":0},{"$f":"'EVALUE SU PROGRAMA DE HM'!$E168","v":0},{"$f":"'EVALUE SU PROGRAMA DE HM'!$E169","v":0},{"$f":"'EVALUE SU PROGRAMA DE HM'!$E175","v":0},{"$f":"'EVALUE SU PROGRAMA DE HM'!$E178","v":0},{"$f":"'EVALUE SU PROGRAMA DE HM'!$E180","v":0},{"$f":"'EVALUE SU PROGRAMA DE HM'!$E182","v":0},{"$f":"'EVALUE SU PROGRAMA DE HM'!$E184","v":0},{"$f":"'EVALUE SU PROGRAMA DE HM'!$E186","v":0},{"$f":"'EVALUE SU PROGRAMA DE HM'!$E189","v":0},{"$f":"'EVALUE SU PROGRAMA DE HM'!$E191","v":0},{"$f":"'EVALUE SU PROGRAMA DE HM'!$E195","v":0},{"$f":"'EVALUE SU PROGRAMA DE HM'!$E198","v":0},{"$f":"'EVALUE SU PROGRAMA DE HM'!$E200","v":0},{"$f":"'EVALUE SU PROGRAMA DE HM'!$E202","v":0},{"$f":"'EVALUE SU PROGRAMA DE HM'!$E204","v":0},{"$f":"'EVALUE SU PROGRAMA DE HM'!$E206","v":0},{"$f":"'EVALUE SU PROGRAMA DE HM'!$E208","v":0},{"$f":"'EVALUE SU PROGRAMA DE HM'!$E210","v":0},{"$f":"'EVALUE SU PROGRAMA DE HM'!$E213","v":0},{"$f":"'EVALUE SU PROGRAMA DE HM'!$E214","v":0},{"$f":"'EVALUE SU PROGRAMA DE HM'!$E216","v":0},{"$f":"'EVALUE SU PROGRAMA DE HM'!$E218","v":0},{"$f":"'EVALUE SU PROGRAMA DE HM'!$E221","v":0},{"$f":"'EVALUE SU PROGRAMA DE HM'!$E223","v":0},{"$f":"'EVALUE SU PROGRAMA DE HM'!$E225","v":0},{"$f":"'EVALUE SU PROGRAMA DE HM'!$E228","v":0},{"$f":"'EVALUE SU PROGRAMA DE HM'!$E232","v":0},{"$f":"'EVALUE SU PROGRAMA DE HM'!$E240","v":0},{"$f":"'EVALUE SU PROGRAMA DE HM'!$E243","v":0},{"$f":"'EVALUE SU PROGRAMA DE HM'!$E245","v":0},{"$f":"'EVALUE SU PROGRAMA DE HM'!$E248","v":0},{"$f":"'EVALUE SU PROGRAMA DE HM'!$E250","v":0},{"$f":"'EVALUE SU PROGRAMA DE HM'!$E254","v":0},{"$f":"'EVALUE SU PROGRAMA DE HM'!$E258","v":0},{"$f":"'EVALUE SU PROGRAMA DE HM'!$E262","v":0},{"$f":"'EVALUE SU PROGRAMA DE HM'!$E265","v":0},{"$f":"'EVALUE SU PROGRAMA DE HM'!$E267","v":0},{"$f":"'EVALUE SU PROGRAMA DE HM'!$E269","v":0},{"$f":"'EVALUE SU PROGRAMA DE HM'!$E272","v":0},{"$f":"'EVALUE SU PROGRAMA DE HM'!$E274","v":0},{"$f":"'EVALUE SU PROGRAMA DE HM'!$E276","v":0},{"$f":"'EVALUE SU PROGRAMA DE HM'!$E278","v":0},{"$f":"'EVALUE SU PROGRAMA DE HM'!$E281","v":0},{"$f":"'EVALUE SU PROGRAMA DE HM'!$E283","v":0},{"$f":"'EVALUE SU PROGRAMA DE HM'!$E285","v":0},{"$f":"'EVALUE SU PROGRAMA DE HM'!$E287","v":0},{"$f":"'EVALUE SU PROGRAMA DE HM'!$E290","v":0},{"$f":"'EVALUE SU PROGRAMA DE HM'!$E292","v":0},{"$f":"'EVALUE SU PROGRAMA DE HM'!$E295","v":0},{"$f":"'EVALUE SU PROGRAMA DE HM'!$E297","v":0},{"$f":"'EVALUE SU PROGRAMA DE HM'!$E300","v":0},{"$f":"'EVALUE SU PROGRAMA DE HM'!$E302","v":0},{"$f":"'EVALUE SU PROGRAMA DE HM'!$E304","v":0},{"$f":"'EVALUE SU PROGRAMA DE HM'!$E306","v":0},{"$f":"'EVALUE SU PROGRAMA DE HM'!$E308","v":0},{"$f":"'EVALUE SU PROGRAMA DE HM'!$E310","v":0},{"$f":"'EVALUE SU PROGRAMA DE HM'!$E313","v":0},{"$f":"'EVALUE SU PROGRAMA DE HM'!$E315","v":0},{"$f":"'EVALUE SU PROGRAMA DE HM'!$E317","v":0},{"$f":"'EVALUE SU PROGRAMA DE HM'!$E320","v":0},{"$f":"'EVALUE SU PROGRAMA DE HM'!$E322","v":0},{"$f":"'EVALUE SU PROGRAMA DE HM'!$E325","v":0},{"$f":"'EVALUE SU PROGRAMA DE HM'!$E327","v":0},{"$f":"'EVALUE SU PROGRAMA DE HM'!$E329","v":0},{"$f":"'EVALUE SU PROGRAMA DE HM'!$E331","v":0},{"$f":"'EVALUE SU PROGRAMA DE HM'!$E333","v":0},{"$f":"'EVALUE SU PROGRAMA DE HM'!$E336","v":0},{"$f":"'EVALUE SU PROGRAMA DE HM'!$E338","v":0},{"$f":"'EVALUE SU PROGRAMA DE HM'!$E340","v":0},{"$f":"'EVALUE SU PROGRAMA DE HM'!$E343","v":0},{"$f":"'EVALUE SU PROGRAMA DE HM'!$E345","v":0},{"$f":"'EVALUE SU PROGRAMA DE HM'!$E347","v":0},{"$f":"'EVALUE SU PROGRAMA DE HM'!$E349","v":0},{"$f":"'EVALUE SU PROGRAMA DE HM'!$E351","v":0},{"$f":"'EVALUE SU PROGRAMA DE HM'!$E353","v":0},{"$f":"'EVALUE SU PROGRAMA DE HM'!$E355","v":0},{"$f":"'EVALUE SU PROGRAMA DE HM'!$E357","v":0}]